{"text_format":"1","workbook":"xlsx","n_sheets":5,"sheets":["Contents","Cover","1. F-Factor summary","2. Individual fire start info","3. Systems and Audit"],"not_rendered":{"charts":0,"images":2,"macros":1,"external_links":2,"defined_names":97,"comments":0,"pivot_tables":0},"unopened":[],"bounds":{"document_bytes":16777216,"sheet_cells":100000,"rows_first":2000,"rows_last":500,"rows_between":2000,"halvings":0,"cell_chars":16384,"cell_head_chars":4096},"cells_cut":0,"cells_raw":0,"read":"whole","date_system":"1900"}

{"sheet":"Contents","index":0,"n_rows":19,"n_cols":6,"rows_kept":19,"cut":false,"hidden":false,"merged":[[8,2,9,3],[2,1,2,10],[4,1,4,10]]}
[" "]
[]
[null,"Electricity Distribution Network Service Provider\nF-factor Reporting Template"]
[]
[null,"Table of contents"]
[]
[]
[null,null,"Cover sheet",null,null,"2. Fire start report"]
[]
[]
[]
[null,null,"1. F-factor summary",null,null,"3. Systems and Audit"]
[]
[]
[]
[]
[]
[]
[null,null,{"$f":"\"NOTE: This spreadsheet includes IRU targets up to and including FY\"&'1. F-Factor summary'!J9","v":"NOTE: This spreadsheet includes IRU targets up to and including FY2022/23"}]

{"sheet":"Cover","index":1,"n_rows":49,"n_cols":6,"rows_kept":49,"cut":false,"hidden":false,"merged":[[10,1,11,8],[13,1,13,8],[48,2,48,6],[42,2,42,3],[42,4,42,7],[46,2,46,6],[47,2,47,6],[38,2,38,3],[38,4,38,7],[41,2,41,3],[41,4,41,7],[37,2,37,3],[37,4,37,7],[32,3,32,8],[30,3,30,8],[15,1,15,8],[26,3,26,8],[28,3,28,8],[26,1,26,2],[31,3,31,5],[14,1,14,8],[16,1,16,8],[17,1,17,8],[21,1,21,8],[19,1,19,8]]}
[]
[]
[]
[]
[]
[]
[]
[null,"Distribution Network Service Provider"]
[null,"Fire start report"]
[]
[null,"This template is to be used by a DNSP to provide a fire start report to the AER in accordance with section 5 of the F-factor Order in Council.  "]
[]
[]
[null,"Colour coding of input sheets:"]
[null,"Dark blue = AER headings"]
[null,"Grey = AER instructions"]
[null,"Yellow = Input cells"]
[null,"Light orange = Automatically-generated cells"]
[]
[null,"Leave coloured cells blank if no information exists - PLEASE DO NOT ENTER TEXT unless specifically requested to do so."]
[null,"The cells and structure of the spreadsheet is locked to prevent inadvertent interference with the automated settings."]
[null,"All dollar amounts are to be unrounded, and in nominal terms."]
[]
[]
[]
[]
[null,"DNSP:",null,"Powercor"]
[]
[null,"DNSP - trading name:",null,"Powercor Australia Ltd"]
[]
[null,"DNSP - Australian business number: ",null,"ACN 064 651 109"]
[]
[null,"Reporting year:",null,"2022/23"]
[]
[]
[]
[]
[null,"Business address","Address",null,"40 Market Street"]
[null,null,"Suburb",null,"Melbourne"]
[null,null,null,"State","Victoria","Postcode"]
[]
[null,"Postal address","Address",null,"Locked Bag 14090"]
[null,null,"Suburb",null,"Melbourne"]
[null,null,null,"State","Victoria","Postcode"]
[]
[]
[null,"Contact name/s"]
[null,"Contact phone/s"]
[null,"Contact email address/s"]

{"sheet":"1. F-Factor summary","index":2,"n_rows":14,"n_cols":15,"rows_kept":14,"cut":false,"hidden":false,"merged":[[5,1,5,2],[3,6,3,8],[4,6,4,8],[5,6,5,8],[11,2,11,3],[12,2,12,3],[13,2,13,3],[6,2,6,3],[7,2,7,3],[8,2,8,3],[9,2,9,3],[10,2,10,3]]}
[null,{"$f":"IF(Cover!D27=\"\",\"[DNSP Name]\", Cover!D27)","v":"Powercor"},"IRU target:",{"$f":"IF(SUM(K2:O2)=0,\"\",SUM(K2:O2))","v":188},null,null,null,null,null,null,"AusNet Services","CitiPower","Jemena","Powercor","United Energy"]
[null,"F-factor data reporting","IRU amount:",{"$f":"IF(SUM('2. Individual fire start info'!S38:S2000)=0,\"\",SUM('2. Individual fire start info'!S38:S2000))","v":69.915600000000083},null,null,null,null,null,"current",{"$f":"IF(OR($B3=\"[Year]\",$B1=\"[DNSP Name]\",$B1<>K1),\"\",LOOKUP($B3,$J3:$J100,K3:K100))","v":""},{"$f":"IF(OR($B3=\"[Year]\",$B1=\"[DNSP Name]\",$B1<>L1),\"\",LOOKUP($B3,$J3:$J100,L3:L100))","v":""},"",188,""]
[null,{"$f":"IF(Cover!D33=\"\",\"[Year]\",Cover!D33)","v":"2022/23"},"Revenue adjustment:",{"$f":"IF(OR(D1=\"\",D2=\"\"),\"\",15000*(D1-D2))","v":1771265.9999999988},null,null,null,null,null,"2016/17",247.7,3.4,9.6999999999999993,468,22.3]
[null,null,null,null,null,null,null,null,null,"2017/18",247.7,3.4,9.6999999999999993,468,22.3]
[null,"Table 2: Summary of total fire starts by F factor Order definition",null,null,null,null,null,null,null,"2018/19",247.7,3.4,9.6999999999999993,468,22.3]
[null,"This is a summary of data in worksheet \"2. Fire Start Report\"",null,null,null,null,null,null,null,"2019/20",221.1,3.4,9.6999999999999993,412.8,22.3]
[null,"Kind of Fire Start by definition of fire start under clause 5 of F-factor Order","Total fires by cause",null,null,null,null,null,null,"2020/21",177.5,1.3,4.2,277.60000000000002,18.7]
[null,"Started in or originated from a distribution system",{"$f":"COUNTIF('2. Individual fire start info'!$N$38:$N$2000,'1. F-Factor summary'!$B8)","v":109},null,null,null,null,null,null,"2021/22",164.3,1.9,3.7,235.2,19]
[null,"Started by any tree, or part of a tree, falling upon or coming into contact with a distribution system",{"$f":"COUNTIF('2. Individual fire start info'!$N$38:$N$2000,'1. F-Factor summary'!$B9)","v":14},null,null,null,null,null,null,"2022/23",149.69999999999999,1.5,2.7,188,13.9]
[null,"Started by any person, bird, reptile or other animal coming into contact with a distribution system",{"$f":"COUNTIF('2. Individual fire start info'!$N$38:$N$2000,'1. F-Factor summary'!$B10)","v":7}]
[null,"Started by lightning striking a distribution system or a part of a distribution system ",{"$f":"COUNTIF('2. Individual fire start info'!$N$38:$N$2000,'1. F-Factor summary'!$B11)","v":7}]
[null,"Started by any other thing forming part of or coming into contact with a distribution system",{"$f":"COUNTIF('2. Individual fire start info'!$N$38:$N$2000,'1. F-Factor summary'!$B12)","v":16}]
[null,"Otherwise started by a distribution system",{"$f":"COUNTIF('2. Individual fire start info'!$N$38:$N$2000,'1. F-Factor summary'!$B13)","v":0}]
[null,"Total",{"$f":"SUM(C8:C13)","v":153}]

{"sheet":"2. Individual fire start info","index":3,"n_rows":237,"n_cols":25,"rows_kept":237,"cut":false,"hidden":false,"merged":[[25,1,25,18],[27,1,27,20],[26,1,26,21],[35,19,35,21],[33,1,33,4],[35,2,35,10],[28,1,28,18],[29,1,29,18],[35,11,35,13],[35,14,35,17],[13,1,13,11],[22,1,22,21],[24,1,24,21],[14,1,14,20],[15,1,15,18],[16,1,16,18],[18,1,18,18],[21,1,21,18],[19,1,19,18],[23,1,23,18],[20,1,20,18],[17,1,17,18],[3,22,3,24],[4,22,4,24],[5,22,5,24],[7,1,7,21],[11,1,11,2],[9,1,9,21]]}
[null,{"$f":"IF(Cover!D27=\"\",\"[DNSP Name]\", Cover!D27)","v":"Powercor"}]
[null,"F-factor data reporting"]
[null,{"$f":"IF(Cover!D33=\"\",\"[Year]\",Cover!D33)","v":"2022/23"}]
[]
[]
[null,"Instructions:"]
[]
[null,{"$f":"\"Enter into this worksheet fire start data, from any IT system, which have been recorded by \"&IF(Cover!D27=\"\",\"[DNSP Name]\", Cover!D27)&\". Note that fire starts must be in accordance with the definition of a fire start in the Order In Council.\"","v":"Enter into this worksheet fire start data, from any IT system, which have been recorded by Powercor. Note that fire starts must be in accordance with the definition of a fire start in the Order In Council."}]
[]
[null,"\"Fire\" should be interpreted using its common meaning and can be defined as a process in which substances combine chemically with oxygen from the air and typically give out bright light, heat and smoke. A fire should be recorded where there is evidence of smoking, charring, scorching, burning or any other evidence that a fire had occurred.  "]
[]
[null,{"$f":"IF(Cover!D27=\"\",\"[DNSP Name] must provide:\", CONCATENATE(Cover!D27,\" must provide:\"))","v":"Powercor must provide:"}]
[]
[null,"Table 3 - Individual Fire Starts"]
[null,"   (1) Date - dd/mm/yyyy"]
[null,"   (2) Time - if known, the 24-hour time of the fire start hh:mm"]
[null,"   (3) Latitude and longitude of the fire start as decimal coordinates"]
[null,"   (4) Address of the property on which the incident occurred or closest to the incident"]
[null,"   (5) Asset number for the asset nearest the fire start"]
[null,{"$f":"\"   (6) Feeder ID for the polyphase overhead line or underground cable nearest the fire start in the \"&B1&\" network\"","v":"   (6) Feeder ID for the polyphase overhead line or underground cable nearest the fire start in the Powercor network"}]
[null,"   (7) Voltage on the line in which the fire start occurred (note: this may not be the nearest polyphase overhead line)"]
[null,"   (8) Network categorisation - CBD, Urban, Rural Long or Rural Short"]
[null,"   (9) Asset type of primary asset causing fire in accordance with OSIRIS asset categories"]
[null,"   (10) Where the asset involved in the fire is a transformer or an overhead or underground line, provide the phase, or phases, of the line or transformer"]
[null,"   (11) Kind of fire start in accordance with categories specified in Clause 5 of the F-factor Order-In-Council [Note: For the 2022-2023 period, the AER and ESV will accept either the initiating event or the cause.]"]
[null,"   (12) Identify the location of the fire start in accordance with the categories specified in Clause 11(b) of the F-factor Order-In-Council"]
[null,"   (13) Provide the BOM fire danger rating applicable at the time of the fire start (data is available on the EM-COP website) [Note: The fire danger rating applies from the time it was issued; ratings do no apply retrospectively. The rating from the previous day carries into the current day until the rating is changed. If no fire danger rating is issued for the day, a rating of \"No forecast\" applies for the whole day.]"]
[null,{"$f":"\"   (14) \"&IF(Cover!D27=\"\",\"[DNSP Name]\", Cover!D27)&\"'s record number for the incident\"","v":"   (14) Powercor's record number for the incident"}]
[null,"   (15) ESV's OSIRIS reference number for the incident"]
[null,"   (16) Free text description of the fault containing relevant comments from field reports "]
[]
[]
[]
[null,"Table 2: Individual Fire Starts"]
[]
[null,"Number","Fire starts",null,null,null,null,null,null,null,null,"Fire Type",null,null,"Risk Factors",null,null,null,"IRU \namount","Additional information"]
[null,null,"Date 1","Time 2","Latitude 3","Longitude 3","Address of incident 4","ID of \nnearest \nasset 5","ID of nearest \npolyphase \nline 6","Voltage of line in which \nfire start \noccurred 7","Network categorisation 8","Type of primary asset \ninvolved in fire start 9","Phase(s) of \nline or \ntransformer 10","Kind of fire start as per Clause 5\nof F-factor Order-In-Council 11","Location \narea 12","Location\nmultiplier","Fire \ndanger \nrating 13","Danger multiplier","Product of multipliers","DNSP record number 14","OSIRIS \n(ESV) reference \nnumber 15","Fault \ndescription 16"]
[{"$f":"COUNTA(C38:O38,Q38,T38:V38)","v":17},1,"2022-07-02","23:23",-38.088904999999997,141.59291999999999,"2639 Princes Highway, Drumbore",30090908,"PLD003","Low voltage AC (<1kV)","Rural Long"," - connection box","three phase","Started in or originated from a distribution system","HBRA only",{"$f":"IF(O38=\"\",\"\",IF(O38=\"LBRA only\",0.2,IF(O38=\"HBRA only\",1,IF(O38=\"within electric line construction area\",19.8,IF(O38=\"within area delineated on plan LEGL./16-354\",4.6,\"\")))))","v":1},"No forecast",{"$f":"IF(Q38=\"\",\"\",IF(C38>=DATE(2022,9,1),IF(Q38=\"No forecast\",0.05,IF(Q38=\"Moderate\",0.334,IF(Q38=\"High\",0.678,IF(Q38=\"Extreme\",2.272,4.754)))),0.05))","v":0.05},{"$f":"IF(OR(P38=\"\",R38=\"\"),\"\",IF(AND(O38=\"within electric line construction area\",Q38=\"No forecast\"),1,P38*R38))","v":0.05},"INC-0017906","20220704PWA_03","Crew attended an all supply failure at the above address. Once on site the crew discovered the pole box had faulted and caught fire. No ground fire.",null,null,"Overhead conductors"]
[17,2,"2022-07-10","19:23",-37.719392999999997,144.83543,"OPP 676 OLD CALDER HIGHWAY,KEILOR,VIC,3036",31024200,"SA002","Low voltage AC (<1kV)","Rural Short"," - connector / termination","three phase","Started in or originated from a distribution system","LBRA only",0.2,"No forecast",{"$f":"IF(Q39=\"\",\"\",IF(C39>=DATE(2022,9,1),IF(Q39=\"No forecast\",0.05,IF(Q39=\"Moderate\",0.334,IF(Q39=\"High\",0.678,IF(Q39=\"Extreme\",2.272,4.754)))),0.05))","v":0.05},1.0000000000000002E-2,"INC-0018250","20220815PWA_01","Customer reported  pole on fire, arcing and sparking.\nOn arrival crew reported that Connection on ABC cable had burnt out and caught fire, but now out.\nThere was no ground fire, no reported injuries or property damage\nFound during outage data review",null,null," - overhead conductor (bare; aluminium core steel reinforced)"]
[17,3,"2022-07-11","00:33",-37.378717000000002,144.12709899999999,"2585 Ballan-Daylesford Road, Musk Vale",31001721,"BAN003","22kV AC","Urban"," - dropper / bridge","three phase","Started in or originated from a distribution system","within area delineated on plan LEGL./16-354",4.5999999999999996,"No forecast",0.05,0.22999999999999998,"INC-0017946","20220711PWA_01","Report from customer received that  of transformer has failed, it was sparking and popping then started glowing and failed. \nCFA reported pole fire reported outside 2585 Ballan-Daylesford Road, Musk Vale.  \nAttending crew said that the HV insulator leads at Barkstead 199 substation (LIS-29054) had been burnt. \nThere was no ground fire, no reported injuries or third party property damage",null,null," - overhead conductor (bare; all aluminium conductor)"]
[17,4,"2022-07-11","11:05",-37.051634,143.68664799999999,"137 MOONLIGHT ROAD,ADELAIDE LEAD,VIC,3465",30018113,"MRO008","Low voltage AC (<1kV)","Rural Long"," - connection box","single phase","Started in or originated from a distribution system","within area delineated on plan LEGL./16-354",4.5999999999999996,"No forecast",0.05,0.22999999999999998,"INC-0017952","20220711PWA_02","Fault Crew  on site advised that LV Fuse Box and wiring on pole had burnt , no ground fire",null,null," - overhead conductor (bare; copper)"]
[17,5,"2022-07-14","11:39",-37.975864999999999,143.135054,"Hamilton Hwy, Derrinallum VIC 3325, Australia",30043743,"CDN006","22kV AC","Rural Long"," - fuse (EDO fuse)","three phase","Started in or originated from a distribution system","within area delineated on plan LEGL./16-354",4.5999999999999996,"No forecast",0.05,0.22999999999999998,"INC-0018251","20220815PWA_02","Report of supply failures.\nOn arrival crew found EDO fuse had hung up and candled, possible initial fault was an animal/bird contact\nThere was no ground fire, no reported injuries or third party property damage\nNo photos taken\nFound during outage data review",null,null," - overhead conductor (bare; steel)"]
[17,6,"2022-07-23","10:30",-37.589270999999997,144.232483,"24 Ballanee Rd, Ballan VIC 3342",33077161,"BMH003","22kV AC","Rural Long"," - fuse (EDO fuse)","three phase","Started in or originated from a distribution system","HBRA only",1,"No forecast",0.05,0.05,"INC-0018255","20220816PWA_02","Following report of supply interruption, crew found an EDO fuse had operated and candled.\nThere was no ground fire, no reported injuries or third party property damage.\nFound during Outage data review.\nNo photos supplied",null,null," - overhead conductor (ABC)"]
[17,7,"2022-07-26","23:40",-38.723381000000003,143.71745000000001,"25 Surf Ave, Skenes Creek VIC 3233, Australia",32066756,"CLC013","Low voltage AC (<1kV)","Rural Long"," - fuse (any other type)","three phase","Started in or originated from a distribution system","LBRA only",0.2,"No forecast",0.05,1.0000000000000002E-2,"INC-0018117","20220729PWA_01","Vic fire called to advise of a pole fire at the incident location. \nA crew was dispatched and found that an FSD and associated leads on the blue phase has deteriorated. \nThe leads had become dislodged due to possible fire.\n\nThere was no ground fire, no reported injuries or third party property damage.\n",null,null," - overhead conductor (covered uninsulated)"]
[17,8,"2022-07-27","08:56",-36.325181000000001,145.41080500000001,"629 GOULBURN VALLEY HIGHWAY,SHEPPARTON NORTH,VIC,3631","PA0125441","SHN011","22kV AC","Rural Long"," - transformer (kiosk mounted)","three phase","Started by any other thing forming part of or coming into contact with a distribution system","LBRA only",0.2,"No forecast",0.05,1.0000000000000002E-2,"INC-0018099","20220727PWA_01","Firecom,  reported Fire in substation \n\nAttending crew  found an excavator has hit several underground cables and the kiosk substation in the school grounds has been damaged and  fire. \nTransformer  leaking oil \nCrew have asked excavator to remain on site for now \nESV en-route ",null,null," - overhead conductor (insulated)"]
[17,9,"2022-07-30","06:21",-38.116632000000003,144.65547799999999,"68 FENWICK STREET,PORTARLINGTON,VIC,3223",33046565,"DDL021","Low voltage AC (<1kV)","Rural Short"," - connection box","single phase","Started in or originated from a distribution system","LBRA only",0.2,"No forecast",0.05,1.0000000000000002E-2,"INC-0018127","20220801PWA_01","Customer reported Box on pole on fire, large orange sparks along with flames hitting the ground.\nAttending crew found  fuse box  had overheated  and ignited. \nSmall fire at base of pole of some 300mm diameter",null,null,"Service lines"]
[17,10,"2022-08-03","05:23",-38.257161000000004,143.219807,"3650  PRINCES HIGHWAY CAMPERDOWN VIC 3260",30264439,"CDN-CLC","66kV AC","Rural Long"," - insulators","three phase","Started in or originated from a distribution system","within area delineated on plan LEGL./16-354",4.5999999999999996,"No forecast",0.05,0.22999999999999998,"INC-0018158","20220803PWA_01","Emergency services  reported a Pole Fire, CFA crews enroute.  \nAttending crew found that insulator stud had snapped allowing 66kv conductor to dislodge and ignite pole",null,null," - overhead service conductor (residential)"]
[17,11,"2022-08-03","06:07",-37.342593000000001,143.33996099999999,"25 Red Hill Rd, Raglan VIC 3373",30002916,"BAS011","22kV AC","Rural Long"," - dropper / bridge","three phase","Started by any tree, or part of a tree, falling upon or coming into contact with a distribution system","within area delineated on plan LEGL./16-354",4.5999999999999996,"No forecast",0.05,0.22999999999999998,"INC-0018168","20220804PWA_01","Crew investigating outage found burnt tree bark on SWER Isolating Transformers and on nearby ground\nno further information available",null,null," - overhead service conductor (commercial / industrial)"]
[17,12,"2022-08-05","11:53",-36.359059999999999,142.96961099999999,"53–59 Aitken Ave Donald VIC 3480Australia","30552778, 44001343","CTN006","22kV AC","Rural Long"," - voltage regulator","three phase","Started in or originated from a distribution system","within area delineated on plan LEGL./16-354",4.5999999999999996,"No forecast",0.05,0.22999999999999998,"INC-0018185","20220805PWA_02","Whilst investigating a fault, where a regulator failed to tap, B phase regulator unit started to make noises.  Smoke started to be emitted from the top of the regulator unit. ",null,null," - overhead service conductor (subdivision / construction)"]
[17,13,"2022-08-05","20:02",-37.650581000000003,143.88376299999999,"Cnr Warrenheip St and Midland Hwy Buninyong",30012627,"BAS022","Low voltage AC (<1kV)","Rural Long"," - luminaires (major road)","single phase","Started in or originated from a distribution system","LBRA only",0.2,"No forecast",0.05,1.0000000000000002E-2,"INC-0018206","20220809PWA_01","CFA report street light fire at the above address.\nThere was no ground fire, no reported injuries or third party property damage",null,null," - overhead service conductor (other)"]
[17,14,"2022-08-07","17:47",-36.44605,145.39165399999999,"7580 GOULBURN VALLEY HIGHWAY  KIALLA 3631",32188707,"MNA024","Low voltage AC (<1kV)","Rural Short"," - dropper / bridge","three phase","Started in or originated from a distribution system","LBRA only",0.2,"No forecast",0.05,1.0000000000000002E-2,"INC-0018188","20220808PWA_01","Reports of damage to leads at pole substation at Shepparton Greyhound Racing Club.   On Arrival crew found blue LV lead between transformer and LV isolator had evidence of melting on the insulation.  Customer on site advised they had seen some arcing and smelt burning.  Crew advised no arcing when they arrived.  ",null,null," - underground service cable (residential)"]
[17,15,"2022-08-17","09:15",-38.489426000000002,143.200255,"659 SUNDAY RIDGE ROAD,SIMPSON,VIC,3266",30562280,"COB011","22kV AC","Rural Long"," - voltage regulator","three phase","Started in or originated from a distribution system","HBRA only",1,"No forecast",0.05,0.05,"INC-0018279","20220818PWA_01","Report received from customer of transformer sparking.\nOn arrival crew found that HV connection had failed on Gas switch at regulator structure. \nMember of public has taken photo showing arcing, sparking and fire.\nRegulator name COB-SSN P342A P342B.\nThere was no ground fire ",null,null," - underground service cable (commercial / industrial)"]
[17,16,"2022-08-17","07:03",-37.840018999999998,144.85505000000001,"76 Mills St, Altona North VIC 3025,",30250734,"BLT030","Low voltage AC (<1kV)","Urban"," - switch (disconnector/isolator)","three phase","Started in or originated from a distribution system","LBRA only",0.2,"No forecast",0.05,1.0000000000000002E-2,"INC-0018601","20220926PWA_03","Report of arcing and sparking on substation outside  76 Mills St, Altona North VIC 3025,.\nOn arrival crew found an FSD had burnt out.\nThere was no ground fire, no reported injuries or third party property damage.\nFound during outage data review",null,null," - underground service cable (subdivision / construction)"]
[17,17,"2022-08-21","00:00",-37.029791000000003,143.67982499999999,"268 Adelaide Lead-Alma Rd, Alma VIC 3465",32023910,"MRO005","Low voltage AC (<1kV)","Rural Long"," - connection box","single phase","Started in or originated from a distribution system","within area delineated on plan LEGL./16-354",4.5999999999999996,"No forecast",0.05,{"$f":"IF(OR(P54=\"\",R54=\"\"),\"\",IF(AND(O54=\"within electric line construction area\",Q54=\"No forecast\"),1,P54*R54))","v":0.22999999999999998},"INC-0018298","20220822PWA_01","Customer reported fire on pole, with the CFA on route.  Upon arrival Maryborough fault crew found FOLCB on Alma P13 had melted due to overheating, molten material candling resulted in minor charring of pole, no ground fire occurred. ",null,null," - underground service cable (other)"]
[17,18,"2022-08-22","12:42",-37.760026000000003,144.587932,"PUMPING FACILITY,BUTLERS ROAD,MOUNT COTTRELL,VIC,3024",33075931,"MLN011","Low voltage AC (<1kV)","Rural Short"," - crossarm (wood)","three phase","Started in or originated from a distribution system","HBRA only",1,"No forecast",0.05,0.05,"INC-0018462","20220908PWA_01","Low voltage  identified by meter, attending crew found damaged LV isolator, cross-arm near isolator  had been burnt and subsequently required replacement\nno indication of fire in outage case notes , however image found during data checking  07/09/2022 shows fire",null,null,"Underground cables"]
[17,19,"2022-08-23","06:35",-36.468994000000002,145.38851399999999,"24 Devine Rd, Kialla West VIC 3631",30130911,"STN021","22kV AC","Rural Short"," - fuse (EDO fuse)","three phase","Started in or originated from a distribution system","LBRA only",0.2,"No forecast",0.05,1.0000000000000002E-2,"INC-0018602","20220926PWA_04","Reports of part supply.\nOn arrival crew found Burnt EDO Fuse barrel.\nThere was no ground fire\nFound during outage data review\nNo photos taken",null,null," - underground cable"]
[17,20,"2022-08-24","08:33",-37.537965999999997,143.92062799999999,"44 Stringybark Dr, Brown Hill VIC 3350",33002784,"BAN015","Low voltage AC (<1kV)","Rural Short"," - connection box","single phase","Started in or originated from a distribution system","within area delineated on plan LEGL./16-354",4.5999999999999996,"No forecast",0.05,0.22999999999999998,"INC-0018329","20220824PWA_01","Notification was received from dispatch of pole fire at customers property.\nUpon arrival crew found that the pole mounted FOLCB was totally destroyed by fire. \nNo ground fire resulted from incident. ",null,null," - underground communications cable"]
[17,21,"2022-08-27","09:37",-36.386240999999998,144.90910600000001,"1117 Winter Rd, Timmering VIC",32190783,"SHP011","22kV AC","Rural Short"," - crossarm (wood)","three phase","Started by any other thing forming part of or coming into contact with a distribution system","LBRA only",0.2,"No forecast",0.05,1.0000000000000002E-2,"INC-0018378","20220831PWA_01","Customers reported brown out conditions. \nCrew patrolling line found  conductor had dislodged and was sitting on cross-arm leaving a small burn. crew considered that  vehicle impact with pole was probable cause.\nThere was no ground fire, no reported injuries or third party property damage.",null,null,"Poles"]
[17,22,"2022-08-29","12:10",-35.643554000000002,143.472408,"509 Bennett Rd, Lalbert VIC 3542, Australia",32019389,"SHL001","12.7kV AC (SWER)","Rural Long"," - pole (wood)","single wire earth return (SWER)","Started by lightning striking a distribution system or a part of a distribution system ","HBRA only",1,"No forecast",0.05,0.05,"INC-0018367","20220830PWA_01","Customer reported There is a wire down in the paddock clear access - looks like a lightening has hit the pole\n\nAttending crew found pole 15 destroyed by lightning, protection operated,  asset fire only",null,null," - pole (concrete)"]
[17,23,"2022-09-13","06:09",-38.223196999999999,143.638563,"5 Kerrs Rd, Ondit VIC 3249",32062475,"CLC006","Low voltage AC (<1kV)","Rural Long"," - connection box","three phase","Started in or originated from a distribution system","within area delineated on plan LEGL./16-354",4.5999999999999996,"No forecast",0.05,0.22999999999999998,"INC-0018519","20220914PWA_01","Firecom reported pole fire at pole 2 Goodie Farm (LIS 3390).\nOn arrival crew found low voltage fuse box caught fire and burnt through the low voltage underground cable insulation. \nThere was  no ground fire, no reported injuries or third party property damage.",null,null," - pole (steel)"]
[17,24,"2022-09-15","13:16",-35.725561999999996,144.095326,"85 Poole Road Koroop 3579",30029379,"KGT003","12.7kV AC (SWER)","Rural Long"," - overhead conductor (bare; steel)","single wire earth return (SWER)","Started by any tree, or part of a tree, falling upon or coming into contact with a distribution system","LBRA only",0.2,"No forecast",0.05,1.0000000000000002E-2,"INC-0018535","20220916PWA_01","Following a supply interruption crew arranged patrol of area.\nCrew found a tree branch had fallen and brought line to ground.\nThere was a small grass fire\nThere was no reported injuries or third party property damage.",null,null," - pole (wood)"]
[17,25,"2022-09-20","23:07",-38.013775000000003,144.02824100000001,"113 Eagle Ct, Teesdale VIC 3328",33046794,"GL012","Low voltage AC (<1kV)","Rural Long"," - connection box","single phase","Started in or originated from a distribution system","within area delineated on plan LEGL./16-354",4.5999999999999996,"No forecast",0.05,0.22999999999999998,"INC-0018583","20220921PWA_02","Crew attending fault found  pole type junction box  had burnt.\nThere was no ground fire or reported injuries",null,null,"Crossarms"]
[17,26,"2022-09-25","06:47",-36.765422000000001,144.25915000000001,"286 Rowan St, Golden Square VIC 3555",30023321,"BET008","Low voltage AC (<1kV)","Urban"," - overhead service conductor (residential)","single phase","Started in or originated from a distribution system","LBRA only",0.2,"No forecast",0.05,1.0000000000000002E-2,"INC-0018589","20220926PWA_02","Customer reported supply interruption, also observing burnt POA junction",null,null," - crossarm (wood)"]
[17,27,"2022-10-07","17:11",-38.150829999999999,144.37183099999999,"21 Pevensey Crescent, Geelong",32069786,"GCY024","Low voltage AC (<1kV)","Urban"," - fuse (any other type)","single phase","Started in or originated from a distribution system","LBRA only",0.2,"No forecast",0.05,1.0000000000000002E-2,"INC-0018731","20221010PWA_02","Fire Comms reported a house fire at the above address.\nWhen the crew arrived they found that the meter box had burnt around the meter fuse.\nThere was no ground fire, no reported injuries",null,null," - crossarm (steel)"]
[17,28,"2022-10-09","19:26",-37.354686999999998,144.725953,"37 TARRAWARRA LANE,ROMSEY,VIC,3434",33029785,"WND012","Low voltage AC (<1kV)","Rural Long"," - connection box","single phase","Started in or originated from a distribution system","within area delineated on plan LEGL./16-354",4.5999999999999996,"No forecast",0.05,0.22999999999999998,"INC-0018717","20221010PWA_01","Report of pole fire at incident location.\nOn arrival crew found a Folcb had been on fire.\nThere was no ground fire, no reported injuries.",null,null," - crossarm (other)"]
[17,29,"2022-10-12","12:07",-35.918680000000002,144.02318700000001,"Macorna Rd, Macorna VIC 3579",30026926,"CHA006","22kV AC","Rural Long"," - insulators","three phase","Started in or originated from a distribution system","HBRA only",1,"No forecast",0.05,0.05,"INC-0019477","20230105PWA_01","During inspection burnt crossarm found at incident location.\nThere was no ground fire\nIncident found during outage data review",null,null,"Overhead assets"]
[17,30,"2022-10-20","12:10",-34.206105000000001,142.16716099999999,"486 BENETOOK AVENUE, MILDURA,VIC,3500",33064849,"MDA024","Low voltage AC (<1kV)","Rural Short"," - overhead service conductor (commercial / industrial)","single phase","Started in or originated from a distribution system","LBRA only",0.2,"No forecast",0.05,1.0000000000000002E-2,"INC-0018825","20221021PWA_01","Pole caught fire at the service wire attachment (pole end). Wire is still attached at pole end. ",null,null," - capacity balancing units"]
[17,31,"2022-10-24","20:25",-38.398584,143.553202,"75 Everett Crescent, Barongarook West 3249",30051870,"CLC003","22kV AC","Rural Long"," - overhead conductor (bare; all aluminium conductor)","three phase","Started by any tree, or part of a tree, falling upon or coming into contact with a distribution system","within area delineated on plan LEGL./16-354",4.5999999999999996,"No forecast",0.05,0.22999999999999998,"INC-0018846","20221025PWA_02","A customer reported that a tree was touching the wires and had caught fire. \nOn arrival the crew found that a pine tree had fallen against the 22kV conductors between Pole 9 Everett Spur (LIS-19066) & Pole 10 Everett Spur (LIS-19067). \nThe crew isolated the supply and extinguished the small fire in the tree. \n\nThere was no ground fire, no injuries, and no third-party damage reported",null,null," - connector / termination"]
[17,32,"2022-10-24","16:28",-37.593986000000001,144.10756900000001,"64 Evergreen Way, Gordon VIC 3345",33003849,"BAN003","22kV AC","Urban"," - overhead conductor (bare; steel)","three phase","Started by any tree, or part of a tree, falling upon or coming into contact with a distribution system","within area delineated on plan LEGL./16-354",4.5999999999999996,"No forecast",0.05,0.22999999999999998,"INC-0019484","20230105PWA_03","Tree reported on HV Tree broke 22kV O/H Cond. Between P3 Shamrock& P4 Shamrock\nTree on wire - arcing and sparking - started fire as per brigade.\nFound during OMS data review\nNo photos found",null,null," - dropper / bridge"]
[17,33,"2022-10-25","02:21",-36.459181000000001,142.03199799999999,"10 Denham St, Dimboola",33052183,"HSM006","Low voltage AC (<1kV)","Rural Long"," - connection box","single phase","Started in or originated from a distribution system","LBRA only",0.2,"No forecast",0.05,1.0000000000000002E-2,"INC-0018844","20221025PWA_01","CFA reported pole fire and attended.\nCrew did not see CFA on site, must have left before they arrived.\nCrew attending found LV service fuse box had fire damage.\nThere were no injuries or other damage found.",null,null," - guy wire"]
[17,34,"2022-10-27","04:11",-36.065519999999999,141.737933,"Marshalls Rd, Netherby VIC 3418, Australia",30603926,"NHL016","22kV AC","Rural Long"," - insulators","three phase","Started in or originated from a distribution system","HBRA only",1,"No forecast",0.05,0.05,"INC-0019485","20230105PWA_04","3 phase tee off pole burnt\nThere was no ground fire.\nFound during oms data review",null,null," - insulator tie wires / connections"]
[17,35,"2022-11-19","23:11",-36.262695000000001,144.58988299999999,"Bamawm Sports Centre and Oval, 714 Bamawm Hall Rd, Bamawm VIC 3561",30143073,"ECA012","Low voltage AC (<1kV)","Rural Long"," - fuse (any other type)","three phase","Started in or originated from a distribution system","LBRA only",0.2,"No forecast",0.05,1.0000000000000002E-2,"INC-0019061","20221121PWA_02","Fire comms reported pole fire at above address.  On arrival crew found pole that was burning near FSD.  FSD and associated cabling melted.",null,null," - insulators"]
[17,36,"2022-11-19","16:42",-38.379786000000003,142.72712999999999,"861 Swans Road, Naringal",30134171,"WBL002","22kV AC","Rural Short"," - transformer (pole mounted)","three phase","Started in or originated from a distribution system","HBRA only",1,"No forecast",0.05,0.05,"INC-0019070","20221121PWA_04","Vic Fire reported a transformer fire at the above address. The crew attended and confirmed Faulted bushing and fire at the transformer.",null,null," - tower"]
[17,37,"2022-12-02","11:49",-38.467480000000002,144.06651400000001,"2 Old Neuk Rd, Moggs Creek VIC 3231",32070040,"WPD014","Low voltage AC (<1kV)","Rural Short"," - overhead service conductor (residential)","single phase","Started in or originated from a distribution system","within area delineated on plan LEGL./16-354",4.5999999999999996,"No forecast",0.05,0.22999999999999998,"INC-0019201","20221205PWA_01","Customer notification was received wires sparking in front of property. \nUpon arrival crew noted that customers mains fuse box was on fire. \nFire damage to facia and service cable was evident. ",null,null," - traction lines"]
[17,38,"2022-12-02","17:00",-37.760026000000003,144.587931," 77-207 BUTLERS ROAD, MOUNT COTRELL ",33075931,"MLN011","Low voltage AC (<1kV)","Rural Short"," - switch (disconnector/isolator)","three phase","Started in or originated from a distribution system","HBRA only",1,"No forecast",0.05,{"$f":"IF(OR(P75=\"\",R75=\"\"),\"\",IF(AND(O75=\"within electric line construction area\",Q75=\"No forecast\"),1,P75*R75))","v":0.05},"INC-0019202","20221205PWA_02","Powercor received a report of fire after customer turned on water pump\n\n\nAttending crew found connection on LV fused isolator had overheated and small ground fire occurred at the base of the pole. ",null,null,"Underground assets"]
[{"$f":"COUNTA(C76:O76,Q76,T76:V76)","v":17},39,"2022-12-08","13:24",-36.471786999999999,145.322394,"365 Pogue Rd, Toolamba VIC 3614",30354787,"MNA034","22kV AC","Rural Long"," - fuse (boric acid)","three phase","Started in or originated from a distribution system","LBRA only",{"$f":"IF(O76=\"\",\"\",IF(O76=\"LBRA only\",0.2,IF(O76=\"HBRA only\",1,IF(O76=\"within electric line construction area\",19.8,IF(O76=\"within area delineated on plan LEGL./16-354\",4.6,\"\")))))","v":0.2},"Moderate",0.33400000000000002,6.6800000000000012E-2,"INC-0019274","20221209PWA_01","Customer advised Powercor of an outage and fire that was not related to Powercor equipment. \nReport subsequently received from  firecomms - pole fire - corner of Toolamba and Pogue Rd \n\nAttending crew found one Boric acid fuse had candled and other fuses had operated ",null,null," - LV pillar"]
[17,40,"2022-12-08","19:07",-37.164785999999999,142.53534999999999,"394-404 Grampians Rd, Halls Gap VIC 3381",32100561,"STL005","22kV AC","Rural Long"," - overhead conductor (bare; aluminium core steel reinforced)","three phase","Started by any tree, or part of a tree, falling upon or coming into contact with a distribution system","within area delineated on plan LEGL./16-354",4.5999999999999996,"Moderate",0.33400000000000002,1.5364,"INC-0019275","20221209PWA_02","A tree branch has landed on a tee off pole 251 Halls Gap line and caused a line outage from ACR pole 121 Halls Gap, \nA patrol has found the branch and it was removed with a telescopic stick\nThere was evidence of burning on branch, no injuries or third party property damage",null,null," - services pit"]
[17,41,"2022-12-08","13:28",-37.805390000000003,144.308697,"531 Brisbane Rd, Balliang VIC 3340, Australia",30102461,"BMH006","12.7kV AC (SWER)","Rural Long"," - insulators","single wire earth return (SWER)","Started in or originated from a distribution system","HBRA only",1,"Moderate",0.33400000000000002,0.33400000000000002,"INC-0019277","20221209PWA_03","Report of pole fire and small ground fire at incident location.\nPole fire has burnt through pole top causing pole top and conductor to fall to ground.\nThere was a small grass fire of approx. 20sq m.\nThere was no reported injuries or third party property damage",null,null,"Transformers"]
[17,42,"2022-12-10","20:45",-36.357686000000001,144.90909400000001,"1120 Webb Rd, Timmering VIC 3561",33096564,"KYM001","22kV AC","Rural Long","Overhead conductors","three phase","Started by any person, bird, reptile or other animal coming into contact with a distribution system","LBRA only",0.2,"Moderate",0.33400000000000002,6.6800000000000012E-2,"INC-0019288","20221212PWA_03","Vic Fire reported sparking pole has caused grass fire.\nUpon arrival crew found that a bird had caused a flashover that subsequently started a grass fire.\nCFA extinguished fire. \nApprox. 10m X 10m area of grass burnt\nNo damage to PCA assets or customer property. No Injuries. ",null,null," - transformer (pole mounted)"]
[17,43,"2022-12-23","19:20",-37.056801,143.85382000000001,"3743 Pyrenees Hwy, Carisbrook VIC 3464",30151312,"MRO007","22kV AC","Rural Long"," - connector / termination","three phase","Started in or originated from a distribution system","within area delineated on plan LEGL./16-354",4.5999999999999996,"Moderate",0.33400000000000002,1.5364,"INC-0019413","20221229PWA_01","CFA reported fire started by PAL asset at incident location. Upon arrival fault crew found that a helical termination holding conductor had released conductor onto steel crossarm,and burnt pole.\na small ground fired occurred ",null,null," - transformer (kiosk mounted)"]
[17,44,"2022-12-27","01:40",-36.255170999999997,141.670547,"Nhill - Netherby Rd, Nhill  - 300m Nth of A Bones Rd",31014589,"NHL016","22kV AC","Rural Long"," - overhead conductor (bare; steel)","three phase","Started by any other thing forming part of or coming into contact with a distribution system","HBRA only",1,"High",0.67800000000000005,0.67800000000000005,"INC-0019433","20221229PWA_07","At approx. 0140 hrs, a header which was harvesting wheat made contact with the 22KV HV line between Netherby Pole 53 and Reichelt Pole 1. \nThe header made contact with the HV conductor near Pole 1. \nThere was no third party damage or injury as a result of the contact. \nA small grass fire approx. 300mm x 300m started near one wheel of the header. \nThere was evidence of stay having part pull out of ground at t/pole 53\nThe farmer extinguished this fire. The CFA did not attend. ",null,null," - transformer (ground outdoor mounted)"]
[17,45,"2022-12-31","15:00",-37.583517999999998,143.87515500000001,"15 Elsworth St E, Canadian VIC 3350",32004250,"BATBAS2","66kV AC","Unknown"," - insulators","three phase","Started by any other thing forming part of or coming into contact with a distribution system","LBRA only",0.2,"Moderate",0.33400000000000002,6.6800000000000012E-2,"INC-0019463","20230103PWA_04","CFA reported a fire at base of pole. \nAttending crew found foil party balloons had caused flashover of bridging insulator and a small ground fire ensued",null,null," - transformer (indoor chamber mounted)"]
[17,46,"2023-01-06","17:44",-37.614125999999999,143.873355,"1504 Geelong rd, Mount Clear, VIC 3350",30000296,"BAS032","22kV AC","Rural Short"," - overhead conductor (bare; all aluminium conductor)","three phase","Started by any tree, or part of a tree, falling upon or coming into contact with a distribution system","within area delineated on plan LEGL./16-354",4.5999999999999996,"Moderate",0.33400000000000002,1.5364,"INC-0019495","20230109PWA_01","Dispatch advised by CFA trhat conductor on ground anns small grass fire at incident location.\nOn arrival crew advised that a large Gum tree from across road has fallen on conductors\nGrass fore around 90 sq mtrs\nThere were no injuries or third party property damage.",null,null," - transformer (any other type)"]
[17,47,"2023-01-08","13:46",-38.305844999999998,142.48447400000001,"143 Plummers Hill Rd, Woodford VIC 3281",33102493,"KRT012","Low voltage AC (<1kV)","Rural Long"," - connection box","single phase","Started in or originated from a distribution system","within area delineated on plan LEGL./16-354",4.5999999999999996,"Moderate",0.33400000000000002,1.5364,"INC-0019496","20230109PWA_02","Emergency Services reported a pole fire at incident location.\nOn arrival crew found an LV FOLCB had overheated, fuse holder dislodged and fell to ground igniting a small grass fire.\nThere were no reported injuries or third party property damage.",null,null," - measurement transformer (current transformer)"]
[17,48,"2023-01-09","08:10",-38.206809,141.828821,"221 SETTLERS ROAD, TYRENDARRA, VIC,3285",30340694,"PLD001","12.7kV AC (SWER)","Rural Long"," - insulators","single wire earth return (SWER)","Started in or originated from a distribution system","HBRA only",1,"Moderate",0.33400000000000002,0.33400000000000002,"INC-0019500","20230109PWA_03","Report received of wire down and fire in paddock.\nOn arrival crew found pole fire, pole top had burnt and fallen, causing a small spot fire.\t\nThere were no injuries or third party property damage.\n",null,null," - measurement transformer (voltage transformer)"]
[17,49,"2023-01-09","13:45",-38.099894999999997,144.34466,"361-367 Thompson Rd, Bell Park VIC 3215",32077966,"CRO022","Low voltage AC (<1kV)","Urban","Overhead conductors","three phase","Started by any other thing forming part of or coming into contact with a distribution system","LBRA only",0.2,"Moderate",0.33400000000000002,6.6800000000000012E-2,"INC-0019504","20230110PWA_02","Report received from Vic fire following high winds there is debris entangled in lines at incident location, wires in contact with truck and fence.\nThere was a small patch of grass burnt (6 sq m)\nThere were no reported injuries",null,null," - measurement transformer (capacitive voltage transformer)"]
[17,50,"2023-01-10","04:52",-38.106005000000003,143.082662,"115 KILNOORAT ROAD, BOOKAAR, VIC, 3260",30151165,"CDN006","Low voltage AC (<1kV)","Rural Long"," - switch (disconnector/isolator)","three phase","Started in or originated from a distribution system","within area delineated on plan LEGL./16-354",4.5999999999999996,"Moderate",0.33400000000000002,1.5364,"INC-0019503","20230110PWA_01","Customer reported the transformer pole had caught fire and bringing the wire to ground. \nA crew was dispatched to investigate.\nOn arrival, they confirmed the service krone box had caught fire. \nNo wire fell to the ground as originally reported.\nThere was no ground fire. no reported injuries or third party property damage",null,null,"Fuses and switchgear"]
[17,51,"2023-01-11","07:44",-37.666884000000003,144.599074,"203 Gisborne Melton Road KURUNJANG ",60077427,"MLN012","Low voltage AC (<1kV)","Rural Short"," - LV pillar","three phase","Started in or originated from a distribution system","LBRA only",0.2,"Moderate",0.33400000000000002,6.6800000000000012E-2,"INC-0019516","20230112PWA_03","Report received from Vic fire of pillar on fire, possible damage to vehicle.\nOn arrival crew found a pillar had overheated and caught fire.\nThere was minor damage to vehicle parked adjacent.\nNo reported injuries.",null,null," - fuse (boric acid)"]
[17,52,"2023-01-12","08:01",-37.291347999999999,142.931983,"35 Elizabeth St, Ararat VIC 3377",32104418,"ART034","22kV AC","Rural Short"," - insulators","three phase","Started in or originated from a distribution system","LBRA only",0.2,"High",0.67800000000000005,0.13560000000000003,"INC-0019519","20230112PWA_05","Crew responded to a fault. Upon arrival the crew found that HV strain crossarm was burnt likely due to insulator leakage.\nOne phase of HV was dislodged & was resting on LV circuit underneath.\nThere was no ground fire or shock / injury.",null,null," - fuse (EDO fuse)"]
[17,53,"2023-01-12","14:31",-37.848084999999998,144.85791599999999,"15 Fink St, Williamstown North, VIC 3016",32172601,"BLT030","22kV AC","Urban"," - dropper / bridge","three phase","Started in or originated from a distribution system","LBRA only",0.2,"Moderate",0.33400000000000002,6.6800000000000012E-2,"INC-0019522","20230113PWA_01","Fire authority advised of pole fire at incident location.\nUpon arrival crew found that HV bridge was burnt with evidence of approximately 150m2 (10m x 15m) grass fire. the conductor didn't come to ground.",null,null," - fuse (Fault Tamer)"]
[17,54,"2023-01-15","15:37",-38.339827999999997,142.319524," 1216 Princes Hwy, Killarney",30138173,"KRT022","22kV AC","Rural Short"," - switch (disconnector/isolator)","three phase","Started in or originated from a distribution system","within area delineated on plan LEGL./16-354",4.5999999999999996,"High",0.67800000000000005,3.1187999999999998,"INC-0019551","20230116PWA_04","Police reported small grass fire in believed to be caused by sparks from wires at pole 108 LIS-4146 (SW 31412)\nOn arrival crew noticed a burn section of grass just inside the paddock that was already out.\nCrew could not determine the cause of the sparks / fire from the immediate electrical assets.",null,null," - fuse (powder filled)"]
[17,55,"2023-01-15","20:59",-36.134650000000001,141.43476799999999,"16 Maude St, Yanac VIC 3418, Australia",30317737,"NHL031","22kV AC","Rural Long"," - dropper / bridge","three phase","Started in or originated from a distribution system","HBRA only",1,"High",0.67800000000000005,0.67800000000000005,"INC-0019561","20230117PWA_01","CFA reported a transformer fire at the above address and grass fire. \nA Powercor crew attended and found that the HV dropper leader to the transformer had failed where it connects to the HV bushing of the transformer. \nThe failed lead started a grass fire which burnt an area approx 30x40 metres. \nThere was no reported injuries",null,null," - fuse (any other type)"]
[17,56,"2023-01-18","12:34",-38.237487999999999,143.99137500000001,"12 Austin St, Winchelsea VIC 3241",30053378,"WIN011","Low voltage AC (<1kV)","Rural Long","Overhead conductors","three phase","Started by any other thing forming part of or coming into contact with a distribution system","LBRA only",0.2,"Moderate",0.33400000000000002,6.6800000000000012E-2,"INC-0019587","20230119PWA_01","Report received of conductor down across roadway at incident location.\nOn arrival crew found two conductors on ground and slight burning to grass.\nNo direct cause observed, possible unknown vehicle has contacted conductors.\nThere were no reported injuries or third party property damage.",null,null," - circuit breaker"]
[17,57,"2023-01-22","09:54",-36.273259000000003,143.632631,"Williamsons Rd, Wychitella VIC 3525, Australia",32028955,"CTN001","12.7kV AC (SWER)","Rural Long"," - pole (wood)","single wire earth return (SWER)","Started by lightning striking a distribution system or a part of a distribution system ","within area delineated on plan LEGL./16-354",4.5999999999999996,"Moderate",0.33400000000000002,1.5364,"INC-0019623","20230123PWA_03","Following supply failure calls a patrol found a SWER pole had been struck by lightning and destroyed.\nConductor came to gound.\nThere was a 10 HA grass fire ignited.\nThere were no injuries reported. ",null,null," - switch (disconnector/isolator)"]
[17,58,"2023-01-23","16:11",-37.54477,143.79787200000001,"5 Ring Rd Alfredton 3350",33000246,"BAS024","22kV AC","Rural Short","Overhead conductors","three phase","Started by any other thing forming part of or coming into contact with a distribution system","LBRA only",0.2,"Moderate",0.33400000000000002,6.6800000000000012E-2,"INC-0019630","20230130PWA_03","Crew were called to address after feeder reclosed and found that a sheet of iron had blown up into the HV conductors causing a small grass fire ",null,null," - switch (earth)"]
[17,59,"2023-01-23","19:50",-36.391626000000002,145.42038700000001,"53 Fordyce St, Shepparton VIC 3630",33091318,"STN021","22kV AC","Rural Short"," - insulators","three phase","Started by any other thing forming part of or coming into contact with a distribution system","LBRA only",0.2,"Moderate",0.33400000000000002,6.6800000000000012E-2,"INC-0019644","20230130PWA_04","Vic Police have reported a metallic party balloon tangled up in overhead 22kV conductors the previous night. \nThe balloon dislodged and started a grass fire. \n Crew inspected pole top assets and found no damage to assets but flash marks were observed by on one of the 22kV insulators. \nArea of fire is 100m squared. ",null,null," - switch (FuseSaver)"]
[17,60,"2023-01-24","13:33",-37.441229,144.566081,"196 BLACK FOREST DRIVE,MACEDON,VIC,3440",32050303,"GSB014","22kV AC","Rural Short"," - fuse (EDO fuse)","three phase","Started in or originated from a distribution system","within area delineated on plan LEGL./16-354",4.5999999999999996,"Moderate",0.33400000000000002,1.5364,"INC-0019642","20230130PWA_05","EDO HV Fuse failed to operate correctly, got stuck and started a ground fire of approx. 600m square in size. ",null,null," - switch (any other type)"]
[17,61,"2023-01-24","07:26",-38.265618000000003,144.43109100000001,"1452-1500 Barwon Heads Rd, Connewarre VIC 3227",30232765,"WPD022","Low voltage AC (<1kV)","Rural Short"," - connection box","single phase","Started in or originated from a distribution system","within area delineated on plan LEGL./16-354",4.5999999999999996,"Moderate",0.33400000000000002,1.5364,"INC-0019631","20230130PWA_06","Pole and ground fire caused by burnt out pole mounted FOLCB (for pole to pit U/G supply). Melted bits of FOLCB landed on ground and started small grass fire approx. 4m square in area. The fire was contained due to high dew level this morning.  ",null,null,"SCADA, network control and protection systems"]
[17,62,"2023-01-25","06:59",-37.208441000000001,142.88414299999999,"50 Garden Gully Rd, Armstrong VIC 3377",30150975,"ART031","22kV AC","Rural Short"," - fuse (EDO fuse)","three phase","Started in or originated from a distribution system","within area delineated on plan LEGL./16-354",4.5999999999999996,"High",0.67800000000000005,3.1187999999999998,"INC-0019665","20230127PWA_01","Emergency services reported a pole fire. Upon arrival, crew found HV EDO unit caught fire at the bottom and melted.\n",null,null," - audio frequency load controller (AFLC)"]
[17,63,"2023-01-25","14:43",-35.281776999999998,141.299351,"209 Danyo South Rd, Cowangie VIC 3506, Australia",32149886,"OYN001","22kV AC","Rural Long"," - insulators","three phase","Started in or originated from a distribution system","HBRA only",1,"Moderate",0.33400000000000002,0.33400000000000002,"INC-0019921","20230216PWA_01","Wire going from street to pole on paddock, hanging low across road. Cust driving past & saw crossarm is damaged or burnt. No hazards. Actual location about 300m South of property on Danyo S Rd Between 209 Danyo S Road and South Road. \nOn arrival crew found crossarm burnt.\nThere was approx 2 sq mtrs of grass stubble burnt. \n\nIncident found during outage data review. ",null,null," - arc suppresion coil"]
[17,64,"2023-01-27","12:47",-37.603973000000003,144.54864799999999,"76 Hoggs Rd, Toolern Vale VIC 3337",30114834,"MLN012","22kV AC","Rural Short"," - fuse (EDO fuse)","three phase","Started in or originated from a distribution system","HBRA only",1,"Moderate",0.33400000000000002,0.33400000000000002,"INC-0019686","20230131PWA_02","Crew responded to a fault found that HV fuse was candeling\nThere was no ground fire or reported injuries",null,null," - automatic circuit recloser (ACR)"]
[17,65,"2023-01-28","16:39",-37.651725999999996,144.44334799999999,"55 Fitzroy St, Darley VIC 3340",33072238,"MLN022","Low voltage AC (<1kV)","Rural Short"," - switch (disconnector/isolator)","three phase","Started in or originated from a distribution system","LBRA only",0.2,"High",0.67800000000000005,0.13560000000000003,"INC-0019672","20230130PWA_01","Emergency services reported pole fire and no power in the area. On arrival, the crew found the 160 amp krone box had caught fire and resulted small grass fire, patch of grass around the base of pole and 1m x 1m south of pole. \n\nThere was no shocks or injuries.",null,null," - communications linear assets"]
[17,66,"2023-01-28","21:48",-38.269849999999998,141.646781,"36 Coates Rd, Allestree VIC 3305",32132793,"PLD001","12.7kV AC (SWER)","Rural Long"," - fuse (EDO fuse)","single wire earth return (SWER)","Started in or originated from a distribution system","HBRA only",1,"High",{"$f":"IF(Q103=\"\",\"\",IF(C103>=DATE(2022,9,1),IF(Q103=\"No forecast\",0.05,IF(Q103=\"Moderate\",0.334,IF(Q103=\"High\",0.678,IF(Q103=\"Extreme\",2.272,4.754)))),0.05))","v":0.67800000000000005},0.67800000000000005,"INC-0019673","20230130PWA_02","Customer reported pole top on fire, to call fire brigade\n\nAttending crew found pole fire had occurred where HV fuse mounting bracket attaches to pole.\nThere was no ground fire",null,null," - communications network assets"]
[17,67,"2023-01-29","10:07",-37.605074999999999,143.78301999999999,"226 Hendersons Road Smythes Creek 3351",33000646,"BAS033","Low voltage AC (<1kV)","Rural Short"," - connection box","three phase","Started in or originated from a distribution system","within area delineated on plan LEGL./16-354",4.5999999999999996,"Moderate",0.33400000000000002,1.5364,"INC-0019679","20230130PWA_10","A pole fire was reported at the incident address. On arrival the fault crew found that a multi phase FOLCB controlling an underground service line to a service pit had caught fire and melted. There was a small grass fire of approximately 30cm by 10cm located at the base of the concrete substation pole. CFA attended. FOLCB was replaced OK and supply reconnected.",null,null," - communications site infrastructure"]
[17,68,"2023-01-29","03:38",-36.406782,145.33170100000001,"210 Simson Rd, Mooroopna VIC 3629, Australia",32190664,"MNA034","22kV AC","Rural Long"," - fuse (EDO fuse)","three phase","Started in or originated from a distribution system","LBRA only",0.2,"High",0.67800000000000005,0.13560000000000003,"INC-0019689","20230131PWA_03","Customer reported that fuse on pole was on fire but had self-extinguished. Upon arrival, Shepparton fault crew found that 1 HV EDO tube had indeed candled on substation pole \"worm 2\".\nNo ground fire resulted.",null,null," - field devices"]
[17,69,"2023-01-30","15:51",-36.115313,143.43828999999999,"Fradds Rd, 600M North of Marmal Church Rd, VIC",32020540,"CTN001","12.7kV AC (SWER)","Rural Long"," - pole (wood)","single wire earth return (SWER)","Started by lightning striking a distribution system or a part of a distribution system ","within area delineated on plan LEGL./16-354",4.5999999999999996,"Moderate",0.33400000000000002,1.5364,"INC-0019680","20230131PWA_01","CFA reported ground fire caused by PAL assets as the incident location. \nUpon arrival Charlton fault crew confirmed fire commenced from pole LIS 601702 (Regan 11), evidence of a recent lightning strike on pole, it appears lightning possibly 36 hours earlier has commenced internal burning of the timber pole, eventually emanating from within and commencing the ground fire.\nPole top assets in good condition thus electrical tracking ruled out as a possible cause.",null,null," - local network wiring assets"]
[17,70,"2023-02-02","21:03",-36.299003999999996,144.530888,"1493 PRAIRIE-ROCHESTER RD - LOCKINGTON",31026032,"SHP012","22kV AC","Rural Long"," - overhead conductor (bare; aluminium core steel reinforced)","three phase","Started by any tree, or part of a tree, falling upon or coming into contact with a distribution system","LBRA only",0.2,"High",0.67800000000000005,{"$f":"IF(OR(P107=\"\",R107=\"\"),\"\",IF(AND(O107=\"within electric line construction area\",Q107=\"No forecast\"),1,P107*R107))","v":0.13560000000000003},"INC-0019780","20230206PWA_02","Report received of Branch contacting conductors and reports fire.\nOn arrival crew found that a pine tree had contacted line and branch burnt off.\nThere was no ground fire, no reported injuries or third party property damage.\n ",null,null," - master station assets"]
[17,71,"2023-02-04","01:20",-36.119062,144.822586,"449 BANGERANG ROAD,ECHUCA VILLAGE,VIC,3564",30246554,"ECA003","22kV AC","Rural Short"," - switch (any other type)","three phase","Started by any person, bird, reptile or other animal coming into contact with a distribution system","LBRA only",0.2,"High",0.67800000000000005,0.13560000000000003,"INC-0019777","20230206PWA_01","Report of flashover at incident location.\nOn arrival crew found a possum has flashed over at bottom of switch structure.\nThere was a small fire at the base of the pole.\nThere were no reported injuries or third party property damage. ",null,null," - neutral earthing resistor"]
[17,72,"2023-02-07","09:39",-35.973306000000001,143.22603100000001,"1222 CALDER HIGHWAY, DUMOSA, VIC 3527",32028738,"CTN003","22kV AC","Rural Long"," - insulators","three phase","Started in or originated from a distribution system","within area delineated on plan LEGL./16-354",4.5999999999999996,"Moderate",0.33400000000000002,1.5364,"INC-0019829","20230208PWA_03","Evidence found of pole fire at incident location.\nWas found by line inspector date of occurrence unknown.\nBurn marks on crossarm.\nThere was no evidence of ground fire and no flames present.",null,null," - oil-filled circuit recloser (OCR)"]
[17,73,"2023-02-08","21:35",-36.198932999999997,144.63031100000001,"SPIERS ROAD ECHUCA WEST 3564 (Cnr of Echuca-Mitiamo Rd)",32182963,"ECA012","22kV AC","Rural Long"," - fuse (EDO fuse)","three phase","Started in or originated from a distribution system","HBRA only",1,"Moderate",0.33400000000000002,0.33400000000000002,"INC-0019835","20230209PWA_01","EDO fuses operated on Rosedell P1 Switch pole.\nDry Grass was ignited at base of pole approx 30x10m burnt\nThere was no injuries.",null,null," - rapid earth fault current limiter (REFCL)"]
[17,74,"2023-02-09","12:45",-38.033141999999998,144.38633200000001,"86-90 Canterbury Rd West, Lara VIC 3212",33044549,"FNS021","22kV AC","Rural Short"," - dropper / bridge","three phase","Started in or originated from a distribution system","HBRA only",1,"Moderate",0.33400000000000002,0.33400000000000002,"INC-0019850","20230210PWA_02","Report of ground fire and supply issues at incident location.\nOn arrival crew found a HV dropper lead caught fire dropping molten material to ground starting a small fire.\nThere was no injuries or third party property damage. ",null,null," - surge diverter"]
[17,75,"2023-02-09","08:26",-37.056801,143.85382000000001,"3743 Pyrenees Hwy, Carisbrook VIC 3464",30151312,"MRO007","22kV AC","Rural Long"," - pole (wood)","three phase","Started by lightning striking a distribution system or a part of a distribution system ","within area delineated on plan LEGL./16-354",4.5999999999999996,"Moderate",0.33400000000000002,1.5364,"INC-0020115","20230309PWA_02","Email from cust: LIS 950776 at entrance to Hanson Quarries struck by lightning, evidence of fire at bottom switch connection,\nIt is believed the pole may have been struck back in december.\nOn arrival crew inspected pole screwdriver slides in about 6inches.\nFound during outage data review.",null,null," - voltage regulator"]
[17,76,"2023-02-10","01:37",-38.336399,141.51643000000001,"15 Davies Lane, Portland West",30353386,"PLD006","12.7kV AC (SWER)","Rural Short"," - insulators","single wire earth return (SWER)","Started in or originated from a distribution system","HBRA only",1,"Moderate",0.33400000000000002,0.33400000000000002,"INC-0019862","20230213PWA_01","Crew attended an all supply fail at the above address. they found a pole fire, ground fire and the SWER conductor on the ground.\nThere was no reported injuries.",null,null,"Public lighting"]
[17,77,"2023-02-11","15:30",-36.292375999999997,141.871726,"944 Glenlee Rd, Gerang Gerang VIC 3418",32107234,"NHL015","22kV AC","Rural Long"," - crossarm (wood)","three phase","Started in or originated from a distribution system","HBRA only",1,"High",0.67800000000000005,0.67800000000000005,"INC-0019864","20230213PWA_02","Report of grass fire at incident location.\nOn arrival crew found HV strain crossarm had broken, one phase conductor fell to ground igniting grass.\nThere were no injuries.",null,null," - brackets (major road)"]
[17,78,"2023-02-12","15:19",-37.230384000000001,141.67748700000001,"1174 Greens lane, Harrow VIC 3317",30552987,"HSM002","Low voltage AC (<1kV)","Rural Long"," - overhead service conductor (residential)","single phase","Started by any person, bird, reptile or other animal coming into contact with a distribution system","HBRA only",1,"High",0.67800000000000005,0.67800000000000005,"INC-0019868","20230213PWA_03","Birds caused damage to service wire, resultant sparks cause ground fire.\nThere were no injuries",null,null," - brackets (minor road)"]
[17,79,"2023-02-12","04:58",-37.575583999999999,143.82790700000001,"300 Sutton St, Delacombe VIC 3356",30568874,"BATS-BAS2","66kV AC","Unknown"," - pole (wood)","three phase","Started by any other thing forming part of or coming into contact with a distribution system","LBRA only",0.2,"High",0.67800000000000005,0.13560000000000003,"INC-0019870","20230213PWA_04","Car hit pole at intersection of Bell and Sutton st, Delacombe.\n66KV line tripped, and caused small fire on pole.\nThere was no ground fire",null,null," - lamps (major road)"]
[17,80,"2023-02-16","17:28",-37.241577999999997,144.43638000000001,"13 Flynns Ln, Kyneton VIC 3444, Australia",30382574,"WND014","Low voltage AC (<1kV)","Rural Short"," - overhead conductor (bare; all aluminium conductor)","three phase","Started by any other thing forming part of or coming into contact with a distribution system","within area delineated on plan LEGL./16-354",4.5999999999999996,"High",0.67800000000000005,3.1187999999999998,"INC-0019934","20230217PWA_03","Fire reported under line.  Upon arrival crew discovered a tarp approx. 4x6m had blown into the line causing the LV conductors to clash.  Something has fallen to the ground and started a grass fire under the span.  The fire was approx. 1/4 acre.\nPolice and fire present\nNo media\nNo injuries or other major damage reported.",null,null," - lamps (minor road)"]
[17,81,"2023-02-17","11:40",-37.872106000000002,144.666763,"22-46 Golden Square Cres, Hoppers Crossing VIC 3029, Australia",33071370,"WBE032","22kV AC","Urban"," - transformer (pole mounted)","three phase","Started by any person, bird, reptile or other animal coming into contact with a distribution system","LBRA only",0.2,"Extreme",2.2719999999999998,0.45439999999999997,"INC-0019942","20230217PWA_04","Custome reported transformer has exploded outside their property.\nAll street off supply.\nSmall grass fire at base of pole\nCrew observed possible bird activity across HV bushings.\nThere were no injuries.",null,null," - luminaires (major road)"]
[17,82,"2023-02-17","16:22",-37.709978999999997,144.30356699999999,"1407 GLENMORE ROAD,GLENMORE,VIC,3340",30108627,"YSWBMH","66kV AC","Rural Long"," - overhead conductor (bare; aluminium core steel reinforced)","three phase","Started by any tree, or part of a tree, falling upon or coming into contact with a distribution system","HBRA only",1,"Extreme",2.2719999999999998,2.2719999999999998,"INC-0019955","20230220PWA_01","This incident has been re-classified as requested by ESV in its draft Validation Report of Powercor’s 2022-23 Fire Start Report. Powercor notes that this reclassification is made in good faith based on ESV’s communication of its investigation findings, however Powercor has not at this stage received details of ESV’s investigation.",null,null," - luminaires (minor road)"]
[17,83,"2023-02-18","08:35",-37.709988000000003,144.78757899999999,"37 ADMIRALS CRESCENT,TAYLORS LAKES,VIC,3038",34007594,"SA003","Low voltage AC (<1kV)","Urban"," - LV pillar","three phase","Started by any other thing forming part of or coming into contact with a distribution system","LBRA only",0.2,"High",0.67800000000000005,0.13560000000000003,"INC-0019956","20230220PWA_02","Customer reported car hit a pilar out the front of this address . Power is now out in the street. wires are exposed.\n\nAttending Powercor fault crew advised that an unknown vehicle has made contact with an LV Open-Point Pillar, resulting in a small grass fire ",null,null," - poles / columns (major road)"]
[17,84,"2023-02-18","23:39",-36.042821000000004,141.03192899999999,"near cnr of Taylors rd and millers rd telopea downs 3420",32121232,"NHL031","12.7kV AC (SWER)","Rural Long"," - insulators","single wire earth return (SWER)","Started in or originated from a distribution system","HBRA only",1,"High",0.67800000000000005,0.67800000000000005,"INC-0019962","20230220PWA_06","A pole fire at serviceton nth tee-off pole 151 has caused a ground fire of approx 20 acres.\n",null,null," - poles / columns (minor road)"]
[17,85,"2023-02-19","15:11",-37.356124000000001,144.52819099999999,"95 HIGH STREET, WOODEND, VIC, 3442",30033334,"WND012","Low voltage AC (<1kV)","Rural Long"," - connection box","three phase","Started in or originated from a distribution system","LBRA only",0.2,"Moderate",0.33400000000000002,6.6800000000000012E-2,"INC-0019957","20230220PWA_03","Powercor received a report that CFA onsite, wooden pole exploded and smoking, not currently on fire.\n\nAttending crew found LV Junction box caught fire, cause unknown.  Debris from fire has dropped on ground and caused a small fire in the mulch below.  Fire approx. 0.5m x 1m.\nOther equipment on pole and pole top was charred.",null,null,"Other "]
[17,86,"2023-02-19","19:16",-36.413992,145.39407299999999,"7958-7960 Kialla Lakes Drive, Kialla 3631",30570914,"STN012","22kV AC","Urban"," - overhead conductor (bare; all aluminium conductor)","three phase","Started by any tree, or part of a tree, falling upon or coming into contact with a distribution system","LBRA only",0.2,"Moderate",0.33400000000000002,6.6800000000000012E-2,"INC-0019960","20230220PWA_05","Powercor received a report that a tree top caught on fire due to contact with HV conductor.  Fire did not spread further than the tip of the tree.  \nThe tree is on the customers property and had grown into line.  ",null,null," - connection box"]
[17,87,"2023-02-20","09:46",-37.373213999999997,144.01416,"235 Daylesford-Clunes Rd, Blampied VIC 3364",32004519,"BAN009","Low voltage AC (<1kV)","Rural Long"," - switch (disconnector/isolator)","three phase","Started in or originated from a distribution system","within area delineated on plan LEGL./16-354",4.5999999999999996,"Moderate",0.33400000000000002,1.5364,"INC-0019963","20230220PWA_07","Fire brigade onsite reported that a fuse on pole has started a small grass fire. \nUpon arrival crew noted that an FSD, caught fire and started a grass fire.",null,null," - earth / earthing"]
[17,88,"2023-02-21","08:22",-37.738103000000002,144.770554,"7 Chetwyn Dr, Kings Park VIC 3021",30118796,"SSE031","22kV AC","Urban"," - insulators","three phase","Started in or originated from a distribution system","LBRA only",0.2,"High",0.67800000000000005,0.13560000000000003,"INC-0019971","20230221PWA_02","Report of pole fire at incident location.\nOn arrival crew found end burnt off HV crossarm allowing conductor to fall.\nThere was no injuries and no ground fire"]
[17,89,"2023-02-21","12:54",-37.631500000000003,144.48164399999999,"Merrimu Reservoir, Diggers Rest-Coimadai Rd, Coimadai VIC 3340, Australia",30107567,"MLN022","22kV AC","Rural Short"," - insulators","three phase","Started in or originated from a distribution system","HBRA only",1,"High",0.67800000000000005,0.67800000000000005,"INC-0019975","20230221PWA_04","Report of pole fire at incident location.\nThere was no ground fire or reported injuries."]
[17,90,"2023-02-21","13:33",-37.711700999999998,144.42029400000001,"Rowsley Station Rd, Maddingley VIC 3340",32176814,"BMH005","22kV AC","Rural Short"," - insulators","three phase","Started in or originated from a distribution system","HBRA only",1,"High",0.67800000000000005,0.67800000000000005,"INC-0020002","20230223PWA_02","Pole cross arm burnt and broken fall to ground.\nThere was no ground fire or reported injuries. ",null,null,"Extra low voltage AC (<50V)"]
[17,91,"2023-02-22","14:22",-38.239344000000003,143.50599199999999,"1209 CORANGAMITE LAKE ROAD,ALVIE,VIC,3249",32066328,"CLC004","Low voltage AC (<1kV)","Rural Long"," - connection box","single phase","Started in or originated from a distribution system","within area delineated on plan LEGL./16-354",4.5999999999999996,"Moderate",0.33400000000000002,1.5364,"INC-0020000","20230223PWA_01","Fire Comms - Grass fire started near a power pole. \nOn arrival crew found that a connection on FOLCB had overheated and allowed fuse base to fall to ground.\nCFA had extinguished a small grass fire.\nThere were no injuries or third party property damage.\n",null,null,"Low voltage AC (<1kV)"]
[17,92,"2023-02-23","08:10",-37.764308999999997,144.76768100000001,"11 Wandsworth Ave, Deer Park VIC 3023, Australia",32169159,"SU021","22kV AC","Urban"," - insulators","three phase","Started in or originated from a distribution system","LBRA only",0.2,"High",0.67800000000000005,0.13560000000000003,"INC-0020007","20230224PWA_02","Report received of conductor low to ground and supply interruption.\nOn arrival crew found a HV term crossarm had burnt and snapped.\nThere was report of a HVI\nThere was no ground fire or reported injuries",null,null,"2.2kV AC"]
[17,93,"2023-02-23","10:41",-37.793841999999998,144.8306,"29A Hampshire Rd, Sunshine VIC 3020",32172926,"SSE034","22kV AC","Urban"," - insulators","three phase","Started in or originated from a distribution system","LBRA only",0.2,"High",0.67800000000000005,0.13560000000000003,"INC-0020120","20230310PWA_02","Report received of pole fire at incident location.\nOn arrival crew found burnt HV crossarm, HV resting near LV\nNo HVI\nThere was no ground fire, no reported injuries or third party property damage\n\nFound during outage data review",null,null,"6.6kV AC"]
[17,94,"2023-02-24","12:52",-37.739553000000001,144.80223799999999,"23 Craigielea Ave, St Albans VIC 3021",30104212,"SA005","22kV AC","Urban"," - insulators","three phase","Started in or originated from a distribution system","LBRA only",0.2,"High",0.67800000000000005,0.13560000000000003,"INC-0020018","20230227PWA_01","22kV cross arm fire due to leakage current. Cross arm broke in two as a result, conductors remained in the air.  No ground fire.",null,null,"11kV AC"]
[17,95,"2023-02-24","16:45",-36.388072999999999,145.409437,"152-164 Swallow St - Shepparton",30288109,"STN012","Low voltage AC (<1kV)","Urban","Overhead conductors","three phase","Started by any tree, or part of a tree, falling upon or coming into contact with a distribution system","LBRA only",0.2,"High",0.67800000000000005,0.13560000000000003,"INC-0020021","20230227PWA_03","SES advised of tree limb over wires.\nOn arrival crew found a large branch had broken and fallen across LV conductors.\nThere was damage to LV conductors, there was damage to a number of adjacent poles.\nThere were two fires on nature strip from this event approx 70mtrs apart.\n",null,null,"12.7kV AC (SWER)"]
[17,96,"2023-02-24","18:20",-37.592081,144.50305700000001,"RAVENSWOOD PARK, 246 Antimony Mine Rd, Coimadai VIC 3340, Australia",32168741,"MLN022","22kV AC","Rural Short"," - insulators","three phase","Started in or originated from a distribution system","HBRA only",1,"High",0.67800000000000005,0.67800000000000005,"INC-0020033","20230228PWA_01","Andrew Scott Ph. 0434 316 755 employee , reports broken HV anchor xarm. HV conductor very low. \nThere was no ground fire\nOn arrival crew found the end burnt off a HV strain crossarm and conductor hanging low suspended by HV bridge.",null,null,"22kV AC"]
[17,97,"2023-02-27","07:14",-37.833725000000001,144.868605,"183 Blackshaws Rd, Newport VIC 3015",30112173,"BLT022","22kV AC","Urban"," - insulators","three phase","Started in or originated from a distribution system","LBRA only",0.2,"Moderate",0.33400000000000002,6.6800000000000012E-2,"INC-0020034","20230228PWA_02","Report of pole fire at incident location.\nUpon arrival, crew confirmed that it was a HV cross arm and pole was smouldering. \nThere was no ground fire or reported injuries. ",null,null,"33kV AC"]
[17,98,"2023-02-28","20:44",-36.66422,144.619741,"Muskerry East School Rd, Muskerry VIC 3557, Australia",32040387,"EHK031","12.7kV AC (SWER)","Rural Long"," - insulators","single wire earth return (SWER)","Started in or originated from a distribution system","within area delineated on plan LEGL./16-354",4.5999999999999996,"Moderate",0.33400000000000002,1.5364,"INC-0020066","20230302PWA_01","Report received of conductor on ground and grass fire in progress.\nOn arrival crew found that a pin type insulator had failed allowing conductor to strike the ground.\nGrass was subsequently ignited.\nThere was no injuries, there was some damage to fencing.",null,null,"66kV AC"]
[17,99,"2023-02-28","18:10",-36.650305000000003,142.259849,"Henty Highway Dooen",30078294,"HSM003","22kV AC","Rural Long","Overhead conductors","three phase","Started by any person, bird, reptile or other animal coming into contact with a distribution system","HBRA only",1,"Moderate",0.33400000000000002,0.33400000000000002,"INC-0020067","20230302PWA_02","CFA advised of fire impacted on assets and to check integrity of assets.\nCFA investigator subsequently identified probable point of origin of fire mid span between poles 94 & 95\nTreating as F factor until investigations completed ",null,null,"132kV AC"]
[17,100,"2023-03-02","18:31",-36.635306999999997,142.32118,"Tucker Road, Jung (3009 Wimmera Hwy, Jung VIC 3401, Australia)",33050925,"HSM001","22kV AC","Rural Long"," - overhead conductor (bare; steel)","three phase","Started by any person, bird, reptile or other animal coming into contact with a distribution system","HBRA only",1,"Moderate",0.33400000000000002,0.33400000000000002,"INC-0020096","20230303PWA_01","Following an auto reclose of Feeder a grass fire started beneath line.\nApprox.500sq m burnt.\nThere was no reported injuries or property damage.",null,null,"220kV AC"]
[17,101,"2023-03-03","16:15",-36.399194999999999,145.327348,"6780 Midland Hwy, Mooroopna VIC 3629",30289317,"MNA021","22kV AC","Rural Short"," - overhead conductor (bare; all aluminium conductor)","three phase","Started by any other thing forming part of or coming into contact with a distribution system","LBRA only",0.2,"Moderate",0.33400000000000002,6.6800000000000012E-2,"INC-0020088","20230306PWA_01","Reports from Fire Comms of lines hit by something causing grass fire. \nCrew found that conductors, above the vicinity of where the grass fire was, were blackened on two phases in particular, with the third having minor burn marks.\nCrew found remains of burnt insulation sisalation on the ground nearby.\nThere was no reported injuries or third party property damage.",null,null,"330kV AC"]
[17,102,"2023-03-03","15:33",-36.779569000000002,144.269464,"62 Belle Vue Rd, Golden Square VIC 3555",30041987,"BET007","Low voltage AC (<1kV)","Rural Short"," - overhead service conductor (residential)","single phase","Started by any other thing forming part of or coming into contact with a distribution system","LBRA only",0.2,"Moderate",0.33400000000000002,{"$f":"IF(OR(P139=\"\",R139=\"\"),\"\",IF(AND(O139=\"within electric line construction area\",Q139=\"No forecast\"),1,P139*R139))","v":6.6800000000000012E-2},"INC-0020089","20230306PWA_02","Reports of truck hitting wire\nOn arrival crew found that the service wire between the pole and number 57 was completely missing.\nCrew were told by neighbour that truck had hit wire and taken wire down with it.\nDamage to customers installation. \nGround fire started near Powercor pole which neighbour extinguished.  Approx 1m square.",null,null,"500kV AC"]
[{"$f":"COUNTA(C140:O140,Q140,T140:V140)","v":17},103,"2023-03-06","00:39",-37.956319000000001,144.69661099999999,"430 Oconnors Road, Werribee South, 3030",32170708,"WBE034","22kV AC","Rural Short"," - insulators","three phase","Started in or originated from a distribution system","LBRA only",{"$f":"IF(O140=\"\",\"\",IF(O140=\"LBRA only\",0.2,IF(O140=\"HBRA only\",1,IF(O140=\"within electric line construction area\",19.8,IF(O140=\"within area delineated on plan LEGL./16-354\",4.6,\"\")))))","v":0.2},"High",0.67800000000000005,0.13560000000000003,"INC-0020093","20230306PWA_04","Report recieved of pole fire at incident location.\nPole top glowing red and sparks coming from pole top.\nOn arrival crew found that subsidiary crossarm had burn through on the outer phase.\nThere was no reported HVI, ground fire, third party damage, injury or shocks as a result of this incident. \n",null,null,"Extra low voltage DC (<120V ripple free)"]
[17,104,"2023-03-09","11:45",-38.268191000000002,144.52185399999999,"107A Presidents Ave, Ocean Grove VIC 3226",30267278,"DDL011","22kV AC","Rural Short"," - dropper / bridge","three phase","Started in or originated from a distribution system","LBRA only",0.2,"Moderate",0.33400000000000002,6.6800000000000012E-2,"INC-0020117","20230310PWA_01","Reported pole fire at incident location.\nOn arrival crew found that a HV dropper lead had burnt off at the transformer bushing.\nbushing cover had melted and lead burnt.\nThere was no ground fire, no reported injuries or third party property damage",null,null,"Low voltage DC (<1.5kV)"]
[17,105,"2023-03-13","04:51",-37.828791000000002,144.85663600000001,"39 Kyle Rd, Altona North VIC 3025",30104951,"BLT031","22kV AC","Urban"," - connector / termination","three phase","Started in or originated from a distribution system","LBRA only",0.2,"Moderate",0.33400000000000002,6.6800000000000012E-2,"INC-0020131","20230314PWA_01","Customer reported, what sounded like arc welding for 5 minutes before the power went out.\nMFB reported pole fire. \n Upon arrival, the crew found the bridge failed at the CHP, then flashed over and damaged the exit cable and Surge Diverters. HV injection at this site and spot fire at the base of pole.",null,null,"600V DC"]
[17,106,"2023-03-19","07:10",-37.334333999999998,144.76688300000001,"90 Sheehans Rd, Romsey VIC 3434",32048574,"WND012","12.7kV AC (SWER)","Rural Long"," - insulators","single wire earth return (SWER)","Started in or originated from a distribution system","within area delineated on plan LEGL./16-354",4.5999999999999996,"Moderate",0.33400000000000002,1.5364,"INC-0020183","20230320PWA_01","Due to an all supply fail report Kyneton fault crew patrolled Tickawarra SWER system for cause of protection operation.\nCrew found that SWER strain pole had burnt off at the strain insulator / stay kingbolts, resulting in the conductors either side of pole to fall to ground. \nNo ground fire resultant, SWER ACR operated for the incident.",null,null,"1500V DC"]
[17,107,"2023-03-20","11:22",-37.682504999999999,144.427052,"32 Powlett St, Maddingley VIC 3340",33077059,"BMH005","22kV AC","Rural Short","Overhead conductors","three phase","Started by any tree, or part of a tree, falling upon or coming into contact with a distribution system","LBRA only",0.2,"High",0.67800000000000005,0.13560000000000003,"INC-0020205","20230321PWA_01","Emergency services reported HV lines down and small grass fire has started.\n\nOn arrival crew found that a limb had broken off and fallen Bringing down conductors.\nThere was a small ground fire, no injuries or third party property damage.",null,null,"Earthing cable"]
[17,108,"2023-03-20","12:16",-34.354120000000002,142.29112000000001,"159 Swamp Rd, Red Cliffs VIC 3496",30099221,"RCT014","22kV AC","Rural Short"," - fuse (EDO fuse)","three phase","Started in or originated from a distribution system","LBRA only",0.2,"Moderate",0.33400000000000002,6.6800000000000012E-2,"INC-0020208","20230321PWA_02","line inspector reported burnt EDO tube at base of substation pole \"Hellendoc 4\", it appears to have occurred some time in the past.\nNo ground fire evident."]
[17,109,"2023-03-21","14:31",-36.352075999999997,144.68973099999999,"70 Diggora Rd, Rochester VIC 3561",32181536,"SHP012","22kV AC","Rural Long"," - fuse (boric acid)","three phase","Started in or originated from a distribution system","HBRA only",1,"Moderate",0.33400000000000002,0.33400000000000002,"INC-0020222","20230322PWA_04","Customer reported arcing and burning PAL asset at the incident location. \nUpon arrival Echuca fault crew confirmed that a Boric Acid fuse tube had hung up and burnt thru, failing to clear correctly for a suspected lightning strike to downstream asset.\nNo ground fire associated with the incident."]
[17,110,"2023-03-21","17:30",-36.631188000000002,144.54230000000001,"170 ELMORE-BARNADOWN ROAD,GOORNONG,VIC,3557",32039729,"EHK031","22kV AC","Rural Short"," - insulators","three phase","Started in or originated from a distribution system","within area delineated on plan LEGL./16-354",4.5999999999999996,"Moderate",0.33400000000000002,1.5364,"INC-0020451","20230421PWA_01 ","Ross - 0427434743, powerline coming in from Elmore-Barnadown , insulator has pulled out from the end of the wooden cross arm causing wire to come down very low, approx 2 and a half meters from the ground, wire low over customer paddock.\nNo ground fire\nFound during outage  review",null,null,"single wire earth return (SWER)"]
[17,111,"2023-03-23","10:01",-38.340034000000003,143.58960400000001,"50R Murray St, Colac VIC 3250, Australia",32066978,"CLC002","22kV AC","Urban"," - insulators","three phase","Started in or originated from a distribution system","LBRA only",0.2,"Moderate",0.33400000000000002,6.6800000000000012E-2,"INC-0020241","20230323PWA_03","Customer reports part of transformer has fallen and fell onto the ground and cars,.\nOn arrival crew found that a HV crossarm had burnt through on the end.\nDebris has fallen on parked cars below\nThere was no ground fire, no reported injuries.",null,null,"single phase"]
[17,112,"2023-03-23","14:50",-37.857270999999997,143.156701,"1395 VITE VITE ROAD VITE VITE VIC 3325",30049476,"CDN006","12.7kV AC (SWER)","Rural Long"," - overhead conductor (bare; steel)","single wire earth return (SWER)","Started by lightning striking a distribution system or a part of a distribution system ","within area delineated on plan LEGL./16-354",4.5999999999999996,"Moderate",0.33400000000000002,1.5364,"INC-0020276","20230324PWA_01","Crew restoring supply after lightning damage found small grass fire and broken conductor between poles 49 and 50 Vite Vite spur",null,null,"two phase"]
[17,113,"2023-03-23","18:16",-37.512588999999998,143.70585800000001,"5 Madden Rd, Cardigan Village VIC 3352",50015901,"BAS011","22kV AC","Rural Long"," - switch (any other type)","three phase","Started by lightning striking a distribution system or a part of a distribution system ","within area delineated on plan LEGL./16-354",4.5999999999999996,"Moderate",0.33400000000000002,1.5364,"INC-0020265","20230324PWA_03","Bas011 feeder went to lockout after a patrol the REFCL protection was disabled and the line attempted to be restored, a faulty switch was found at the address location above, a small grass fire was attended by Vic fire.",null,null,"three phase"]
[17,114,"2023-03-24","15:50",-37.697217999999999,142.884458,"1782 GLENELG HIGHWAY,LAKE BOLAC,VIC,3351 (Truck Parking Bay, Lake Bolac VIC 3351, Australia)",30083205,"ART033","22kV AC","Rural Long"," - fuse (EDO fuse)","three phase","Started in or originated from a distribution system","within area delineated on plan LEGL./16-354",4.5999999999999996,"Moderate",0.33400000000000002,1.5364,"INC-0020281","20230327PWA_03","Vic fire reported a fire at a pole at the above location on arrival the fault crew found two blown HV fuses which appears may have ignited a small grass fire at the base of the pole."]
[17,115,"2023-03-25","07:28",-37.333615999999999,144.72790800000001,"3 Ochiltree Ct, Romsey VIC 3434, Australia",33029436,"WND012","Low voltage AC (<1kV)","Rural Long"," - connection box","single phase","Started in or originated from a distribution system","within area delineated on plan LEGL./16-354",4.5999999999999996,"Moderate",0.33400000000000002,1.5364,"INC-0020293","20230328PWA_01","Report received from CFA of pole fire at incident location.\nUpon arrival crew made area safe and noted that CFA had been onsite to entinguish a melting 100A FOLCB\nThe FOLCB had been dropping molten plastic to ground and did not start any grass fire.\nThere was no reported injuries or third party property damage"]
[17,116,"2023-03-26","11:05",-38.118920000000003,143.18056999999999,"521 Milangil Estate Road, Kariah ",30049596,"CDN004","Low voltage AC (<1kV)","Rural Long"," - connection box","single phase","Started in or originated from a distribution system","within area delineated on plan LEGL./16-354",4.5999999999999996,"Moderate",0.33400000000000002,1.5364,"INC-0020279","20230327PWA_02","Vic Fire reported a pole fire. \nCrew attended and confirmed a pole box had caught fire.\n Fire self extinguished",null,null,"Negligible: no ground fire"]
[17,117,"2023-03-29","00:37",-34.633211000000003,142.73284000000001,"76C SALAMAUA ROAD - ROBINVALE 3549",33064252,"RVL001","Low voltage AC (<1kV)","Rural Short"," - connection box","single phase","Started in or originated from a distribution system","LBRA only",0.2,"Moderate",0.33400000000000002,6.6800000000000012E-2,"INC-0020328","20230403PWA_02","Crew noted fused mains box on pole had melted, crew isolated and replaced. No grassfire just melted box at base of pole in customer's lawn, lots of lush green grass at pole base. \n\n03/04 reviewed images - upgraded to fire\n",null,null,"Localised: less than 10 sq.m"]
[17,118,"2023-03-30","14:01",-36.150399,142.85884899999999,"75 Camp St, Watchem VIC 3482",32017406,"CTN001","22kV AC","Rural Long"," - insulators","three phase","Started in or originated from a distribution system","within area delineated on plan LEGL./16-354",4.5999999999999996,"Moderate",0.33400000000000002,1.5364,"INC-0020316","20230331PWA_01","Powercor received a report of broken crossarm.\n\nThe attending crew found that a HV crossarm had burnt.",null,null,"Small: 10 - 1000 aq.m"]
[17,119,"2023-03-30","06:11",-36.717602999999997,144.250091,"4-8 Loddon Valley Hwy, Eaglehawk VIC 3556, Australia",32036447,"BET006","Low voltage AC (<1kV)","Rural Short"," - luminaires (major road)","single phase","Started in or originated from a distribution system","LBRA only",0.2,"Moderate",0.33400000000000002,6.6800000000000012E-2,"INC-0020465","20230424PWA_03","Report received of lantern fire\nno ground fire\n\nFound during outage data review",null,null,"Medium: 1000 sq.m - 10 ha"]
[17,120,"2023-03-31","07:01",-37.981434,144.57370299999999,"West Tanks Rd, Cocoroc VIC 3030, Australia",32164952,"WBE023","22kV AC","Rural Short"," - insulators","three phase","Started in or originated from a distribution system","LBRA only",0.2,"Moderate",0.33400000000000002,6.6800000000000012E-2,"INC-0020330","20230403PWA_03","Cross arm burnt off and wire hanging high above the ground. \nCrew saw no fire on the ground",null,null,"Large: more than 10 ha"]
[17,121,"2023-04-01","20:33",-38.169226999999999,144.32787200000001,"Outside 12 Barrabool Rd (corner Mt Pleasant Rd) Highton",30153529,"WPD033","Low voltage AC (<1kV)","Urban"," - luminaires (major road)","single phase","Started in or originated from a distribution system","LBRA only",0.2,"Moderate",0.33400000000000002,6.6800000000000012E-2,"INC-0020332","20230403PWA_05","A pole fire was reported at pole LIS-955297. \nUpon arrival, crew found that the fire appeared to have started from a 80w MV public light."]
[17,122,"2023-04-03","01:06",-38.620969000000002,142.99515500000001,"21 HENNESSY STREET PORT CAMPBELL 3269 ",32058365,"TRG013","Low voltage AC (<1kV)","Rural Long"," - connection box","single phase","Started in or originated from a distribution system","LBRA only",0.2,"Moderate",0.33400000000000002,6.6800000000000012E-2,"INC-0020340","20230404PWA_01","Emergency Service reported via a customer that there was a loud bang and sparks coming from pole out the front of 21 Hennessy St. On arrival, the crew confirmed an FOLCB had caught fire and required replacing. The crew made repairs by replacing the FOLCB and associated damaged equipment.\n"]
[17,123,"2023-04-05","11:01",-38.023155000000003,144.407749,"5 THE CENTREWAY,LARA,VIC,3212","A2561042","FNS013","Low voltage AC (<1kV)","Rural Short"," - fuse (any other type)","single phase","Started in or originated from a distribution system","LBRA only",0.2,"Moderate",0.33400000000000002,6.6800000000000012E-2,"INC-0020363","20230405PWA_04","fire comms reported fire at meter box - fire brigade onsite now\nCrew found fire at meter panel mounted fuse to solicitor's office had ignited",null,null,"Started in or originated from a distribution system"]
[17,124,"2023-04-06","14:04",-37.912947000000003,144.29246900000001,"Feathercock Rd, Anakie VIC 3213, Australia",31011550,"CRO013","22kV AC","Rural Long"," - overhead conductor (bare; steel)","three phase","Started by any other thing forming part of or coming into contact with a distribution system","within area delineated on plan LEGL./16-354",4.5999999999999996,"Moderate",0.33400000000000002,1.5364,"INC-0020377","20230411PWA_01","An excavator belonging to Aerolite Quarries (Manager: Trevor Bartlett 0408 187 814), hit the HV conductors between P3 Featherock (LIS-51403) & P4 Featherock Spur (LIS-51404), causing two of the HV conductors to fall to the ground resulting in a grassfire of approx 50m x 10m = 500m2 in that area.\nA secondary fault occurred due to the fault current from the first incident, this caused a HV conductor to fall to the ground between P4 Brownes Rd (LIS-51475) & P5 Brownes Rd (LIS-140480), approx. 2.7kms from the initial contact. This resulted in another fire of approx 100m x 10m = 1,000m2 of road reserve. There were no reported injuries.",null,null,"Started by any tree, or part of a tree, falling upon or coming into contact with a distribution system"]
[17,125,"2023-04-06","14:04",-37.915852999999998,144.260189,"35 Brownes Rd, Anakie VIC 3213",30063810,"CRO013","22kV AC","Rural Long","Overhead conductors","three phase","Started by any other thing forming part of or coming into contact with a distribution system","within area delineated on plan LEGL./16-354",4.5999999999999996,"Moderate",0.33400000000000002,1.5364,"INC-0020378","20230411PWA_02","An excavator belonging to Aerolite Quarries (Manager: Trevor Bartlett 0408 187 814), hit the HV conductors between P3 Featherock (LIS-51403) & P4 Featherock Spur (LIS-51404), causing two of the HV conductors to fall to the ground resulting in a grassfire of approx 50m x 10m = 500m2 in that area.\nA secondary fault occurred due to the fault current from the first incident, this caused a HV conductor to fall to the ground between P4 Brownes Rd (LIS-51475) & P5 Brownes Rd (LIS-140480), approx. 2.7kms from the initial contact. This resulted in another fire of approx 100m x 10m = 1,000m2 of road reserve. There were no reported injuries.",null,null,"Started by any person, bird, reptile or other animal coming into contact with a distribution system"]
[17,126,"2023-04-06","16:00",-38.527470000000001,143.137563,"Near the corner of Cooriemungle Rd & Guys Rd, Cooriemungle 3268",30047288,"COB011","22kV AC","Rural Long"," - fuse (boric acid)","three phase","Started in or originated from a distribution system","HBRA only",1,"Moderate",0.33400000000000002,0.33400000000000002,"INC-0020379","20230411PWA_04","Customers reported a bright light at the incident location, on arrival the crew found that a HV Boric Acid fuse had blown and candled at Switch P34 Cooriemungle LIS-414124, Sw-26429. \nThere was no other reported damage and no ground fire.",null,null,"Started by lightning striking a distribution system or a part of a distribution system "]
[17,127,"2023-04-13","06:29",-37.916285999999999,144.750596,"440 Point Cook Rd, Point Cook VIC 3030",30108872,"LV004","Low voltage AC (<1kV)","Urban"," - connection box","three phase","Started in or originated from a distribution system","HBRA only",1,"Moderate",0.33400000000000002,0.33400000000000002,"INC-0020402","20230413PWA_02","Emergency services advised of pole fire with sparking & arching.\n\nUpon arrival the crew found that 3 phase FOLCB was burnt with evidence of small grass fire (appox. 1m2). ",null,null,"Started by any other thing forming part of or coming into contact with a distribution system"]
[17,128,"2023-04-15","23:59",-37.661980999999997,144.60688500000001,"21 Croxton Drive, Kurunjang, VIC, 3337",31023177,"MLN012","Low voltage AC (<1kV)","Rural Short"," - connection box","three phase","Started in or originated from a distribution system","LBRA only",0.2,"Moderate",0.33400000000000002,6.6800000000000012E-2,"INC-0020417","20230417PWA_03","On arrival to site the PCA Faults Crew have advised that the Three-Phase FOLCB mounted on Pole 6 LIS-111161, had burned away and melted.\nThere was no ground fire or reported injuries",null,null,"Otherwise started by a distribution system"]
[17,129,"2023-04-15","23:26",-37.582439000000001,143.845833,"311 Yarrowee Pde, Redan 3350",30149222,"BAS032","Low voltage AC (<1kV)","Rural Short"," - overhead conductor (ABC)","three phase","Started by any tree, or part of a tree, falling upon or coming into contact with a distribution system","LBRA only",0.2,"Moderate",0.33400000000000002,6.6800000000000012E-2,"INC-0020434","20230418PWA_02","At approx 23:26 hrs a customer reported sparking wires at the above address. \nA crew was dispatched and found that a council responsibility tree had grown around the LVABC mains cable at the above location and rubbed through the insulations. \nThere was minor burning of the tree branch, but no ground fire."]
[17,130,"2023-04-15","21:28",-37.250366,144.45665199999999,"1A Ferguson Street Kyneton 3444",33025276,"WND014","22kV AC","Rural Short"," - overhead conductor (insulated)","three phase","Started in or originated from a distribution system","LBRA only",0.2,"Moderate",{"$f":"IF(Q167=\"\",\"\",IF(C167>=DATE(2022,9,1),IF(Q167=\"No forecast\",0.05,IF(Q167=\"Moderate\",0.334,IF(Q167=\"High\",0.678,IF(Q167=\"Extreme\",2.272,4.754)))),0.05))","v":0.33400000000000002},6.6800000000000012E-2,"INC-0020435","20230418PWA_03","Firecom reported Police on site transformer exploded. \nCrew found substation Fergusson - High 4, HV leads flashed-over, \nThere was no ground fire"]
[17,131,"2023-04-15","22:54",-34.254494999999999,142.10847100000001,"3289 Benetook Avenue Mildura 3500",32147809,"MDA023","22kV AC","Rural Short"," - dropper / bridge","three phase","Started in or originated from a distribution system","LBRA only",0.2,"Moderate",0.33400000000000002,6.6800000000000012E-2,"INC-0020448","20230420PWA_05","Firecom reported pole fire.\nCrew found the top of an Lightning arrester was shorting out on the earth screens of this HV dropper on sub pole Benetook 19th P68A, very small flames and no burning to anything else but the two items. \nThere was no ground fire or reported injuries",null,null,1]
[17,132,"2023-04-18","15:26",-36.422002999999997,145.647671,"2380 Midland Highway Cosgrove South 3631",30129283,"STN011","22kV AC","Rural Long"," - crossarm (wood)","three phase","Started in or originated from a distribution system","HBRA only",1,"Moderate",0.33400000000000002,0.33400000000000002,"INC-0020445","20230420PWA_02","Ausnet customer reported: call dropped out, broken cross arm with wires on the road, Benella-Shepparton Road going 1.5 km east of Bridge Road in Cosgrove South.\nCrew found a broken cross arm at Midland Highway P166 (LIS 7772) that has been chewed out by termites causing the arm to fail.\nThe broken cross arm has resulted in the conductors failing to the ground and starting 5 small spot fires ranging from 3 meter to 1 meter in size. \nThere was no reported injuries.",null,null,2]
[17,133,"2023-05-01","15:34",-37.909925999999999,144.74054000000001,"5 Ivory Avenue, Point Cook",30272467,"WBE013","Low voltage AC (<1kV)","Urban"," - underground service cable (residential)","three phase","Started by any person, bird, reptile or other animal coming into contact with a distribution system","LBRA only",0.2,"No forecast",0.05,1.0000000000000002E-2,"INC-0020531","20230502PWA_01","Illegal bypass at number 5 Ivory Ave Point Cook caused fire in service pit between number 3 and number 5.",null,null,3]
[17,134,"2023-05-05","21:00",-37.872284000000001,144.66508099999999,"2 Golden Square Cres, Hoppers Crossing VIC 3029, Australia",30106845,"WBE032","22kV AC","Urban"," - connector / termination","three phase","Started in or originated from a distribution system","LBRA only",0.2,"No forecast",0.05,{"$f":"IF(OR(P171=\"\",R171=\"\"),\"\",IF(AND(O171=\"within electric line construction area\",Q171=\"No forecast\"),1,P171*R171))","v":1.0000000000000002E-2},"INC-0020574","20230508PWA_01","The crew advised that the HV cable termination overheated",null,null,4]
[17,135,"2023-05-07","22:29",-38.526060000000001,143.98390000000001,"Hall Street Cnr Armistead, Lorne ",30318162,"TQY021","22kV AC","Rural Short"," - dropper / bridge","three phase","Started in or originated from a distribution system","LBRA only",0.2,"No forecast",0.05,1.0000000000000002E-2,"INC-0020593","20230510PWA_02","Burnt Lead on CAP bank ",null,null,5]
[17,136,"2023-05-13","09:29",-38.271393000000003,144.496734,"70A Carr St, Barwon Heads",30071921,"WPD022","Low voltage AC (<1kV)","Rural Short"," - connection box","single phase","Started in or originated from a distribution system","LBRA only",0.2,"No forecast",0.05,1.0000000000000002E-2,"INC-0020633","20230515PWA_04","FOLCB has failed and caught fire. The pole was also left with burn marks.",null,null,6]
[17,137,"2023-05-14","19:00",-38.447414999999999,144.11854700000001,"1000 Great Ocean Rd, Aireys Inlet VIC 3231",30061105,"TQY021","Low voltage AC (<1kV)","Rural Short"," - connection box","single phase","Started in or originated from a distribution system","within area delineated on plan LEGL./16-354",4.5999999999999996,"No forecast",0.05,0.22999999999999998,"INC-0020631","20230515PWA_03","FOLCB has failed and caught fire. The pole was also left with burn marks No ground fire.",null,null,7]
[17,138,"2023-05-16","22:31",-36.759641999999999,144.23034799999999,"22 Westbury Bvd Maiden Gully 3551",41119826,"BET006","22kV AC","Rural Short"," - transformer (kiosk mounted)","three phase","Started in or originated from a distribution system","LBRA only",0.2,"No forecast",0.05,1.0000000000000002E-2,"INC-0020669","20230518PWA_02","powercor was advised of possible Kiosk substation on fire - emergency services onsite\nAttending crew  found  Kiosk substation had been badly damaged by fire.\n",null,null,8]
[17,139,"2023-05-21","14:00",-38.726672000000001,143.25222099999999,"1800 Great Ocean Road, Yuulong",30046166,"COB011","12.7kV AC (SWER)","Rural Long"," - insulators","single wire earth return (SWER)","Started in or originated from a distribution system","HBRA only",1,"No forecast",0.05,0.05,"INC-0020682","20230522PWA_02","Pole fire had occurred at Wiridjil-Boulevarde P102 LIS-413868, a SWER type 3 angle with a SWER tee-off. ",null,null,9]
[17,140,"2023-05-21","06:00",-38.363390000000003,142.45961700000001,"5 Caramut Rd, Warrnambool",30134939,"KRT023","Low voltage AC (<1kV)","Rural Short"," - underground service cable (commercial / industrial)","three phase","Started in or originated from a distribution system","LBRA only",0.2,"No forecast",0.05,1.0000000000000002E-2,"INC-0020683","20230524PWA_01"," 3 phase LV UG cable had failed at base of pole and burned under cable guard.",null,null,10]
[17,141,"2023-05-22","00:53",-34.615501000000002,142.79533499999999,"31B Crete Rd, Robinvale Irrigation District Section B VIC 3549",30318850,"RVL001","22kV AC","Rural Short"," - dropper / bridge","three phase","Started in or originated from a distribution system","LBRA only",0.2,"No forecast",0.05,1.0000000000000002E-2,"INC-0020685","20230522PWA_04","HV lead from transformer melted and burnt",null,null,{"$f":"Y177+1","v":11}]
[17,142,"2023-06-01","22:21",-37.764071000000001,144.84032300000001,"31 Bunnett St, Sunshine North VIC 3020",30308413,"SSE032","Low voltage AC (<1kV)","Urban"," - connector / termination","three phase","Started in or originated from a distribution system","LBRA only",0.2,"No forecast",0.05,1.0000000000000002E-2,"INC-0020785","20230605PWA_01","Pole fire IPC Connector and part of lead",null,null,{"$f":"Y178+1","v":12}]
[17,143,"2023-06-06","23:26",-38.019872999999997,144.43183500000001,"95 Lockyers Rd, Lara VIC 3212",33044682,"FNS013","Low voltage AC (<1kV)","Rural Short"," - connection box","single phase","Started in or originated from a distribution system","HBRA only",1,"No forecast",0.05,0.05,"INC-0020806","20230607PWA_03"," Fused mains box had ignited, small  fire at base of pole due to fallen debris \n",null,null,13]
[17,144,"2023-06-07","19:20",-37.562415000000001,142.291133,"Glen Elva, 37 Templetons Rd, Victoria Valley VIC 3294",32124733,"HTN032","22kV AC","Rural Long"," - transformer (pole mounted)","three phase","Started by lightning striking a distribution system or a part of a distribution system ","within area delineated on plan LEGL./16-354",4.5999999999999996,"No forecast",0.05,0.22999999999999998,"INC-0020815","20230608PWA_01","Customer reported transformer on  fire \nAttending crew found 50KVA transformer had been hit by lightning and split \nground fire  of approx 4m X 4m extinguished bt CFA \nOil spill of similar size",null,null,14]
[17,145,"2023-06-07","15:40",-37.835222000000002,144.826019,"445-469 Grieve Parade, Altona North",30108694,"ATS-TYA","66kV AC","Unknown"," - communications network assets","single phase","Started by any other thing forming part of or coming into contact with a distribution system","LBRA only",0.2,"No forecast",0.05,1.0000000000000002E-2,"INC-0020862","20230613PWA_03","Powercor was advised of a supervisory cable igniting and falling to ground.\nIt appears to have been contacted by a Linfox tanker and flicked up into 66kV conductors. ",null,null,15]
[17,146,"2023-06-09","22:34",-37.42004,143.942016,"349 Sawmill Rd Springmount 3364",33000712,"BAN009","Low voltage AC (<1kV)","Rural Long"," - switch (disconnector/isolator)","three phase","Started in or originated from a distribution system","within area delineated on plan LEGL./16-354",4.5999999999999996,"No forecast",0.05,0.22999999999999998,"INC-0020876","20230614PWA_01","The CFA reported a pole fire at the above location. \nA Powercor crew attended and determined that an LV fuse box had caught fire at Roberts Pole 7. \nThere was no ground fire or third party damage.",null,null,16]
[17,147,"2023-06-17","13:47",-36.347206,145.24072000000001,"685 Hooper Road Mooroopna North West 3616",30242247,"MNA014","22kV AC","Rural Long"," - overhead conductor (bare; steel)","three phase","Started by any tree, or part of a tree, falling upon or coming into contact with a distribution system","LBRA only",0.2,"No forecast",0.05,1.0000000000000002E-2,"INC-0020948","20230619PWA_01","Undervoltage detected at above address. \nOn arrival, crew found a tree branch had fallen into a HV conductor bringing HV conductor to ground.\nSingle sectional fuse operated.\nCrew were on site arranging isolations when branch on wire starting smoking and caught fire.\nThere was an approx 1 sq metre vegetation fire\nThere was no reported of injuries\nFire self extinquished.",null,null,17]
[17,148,"2023-06-19","09:05",-37.477863999999997,144.65365199999999,"148 CAMPBELL ROAD, RIDDELLS CREEK,VIC,3431",32045443,"GSB012","Low voltage AC (<1kV)","Rural Short"," - connection box","single phase","Started in or originated from a distribution system","within area delineated on plan LEGL./16-354",4.5999999999999996,"No forecast",0.05,0.22999999999999998,"INC-0020960","20230619PWA_02","Customer reported pole smoking, cover for fuse has melted and dropped out\nCrew found FOLCB on pole 13 had burnt \nThere was no ground fire",null,null,18]
[17,149,"2023-06-22","09:02",-35.982323999999998,142.91737499999999,"47 Cumming Ave, Birchip VIC 3483",30580615,"CTN001","Low voltage AC (<1kV)","Rural Long"," - overhead conductor (ABC)","three phase","Started in or originated from a distribution system","LBRA only",0.2,"No forecast",0.05,1.0000000000000002E-2,"INC-0021027","20230622PWA_04","Burnt out insulated connection on pole. \nNo ground fire",null,null,19]
[17,150,"2023-06-22","06:49",-38.161797999999997,144.31839199999999,"75 Reigate Rd, Highton VIC 3216",30544526,"WPD033","Low voltage AC (<1kV)","Urban"," - connection box","single phase","Started in or originated from a distribution system","LBRA only",0.2,"No forecast",0.05,1.0000000000000002E-2,"INC-0021028","20230622PWA_05","Pole mounted FOLCB has caught fire. No ground fire.",null,null,20]
[17,151,"2023-06-26","09:48",-37.398226000000001,144.590496,"4 Anzac Rd, Mount Macedon VIC 3441 (734 Mount Macedon Rd, Mount Macedon VIC 3441, Australia)",30032395,"GSB014","12.7kV AC (SWER)","Rural Short"," - overhead conductor (bare; all aluminium conductor)","single wire earth return (SWER)","Started by any tree, or part of a tree, falling upon or coming into contact with a distribution system","within area delineated on plan LEGL./16-354",4.5999999999999996,"No forecast",0.05,0.22999999999999998,"INC-0021075","20230626PWA_03","Customer reported Tree fallen on powerlines and brought them down on the ground.\nPopping noise heard then fire sparked but has since gone out.\nSES has been called to attend. \nCrew found dead  branch had blown onto SWER line and burnt through conductor causing it to contact Aerial earth below \nVery small fire  on branch where it contacted line "]
[17,152,"2023-06-10","07:38:00",-36.372391,145.34424200000001,"30 CRAIGMUIR DRIVE,MOOROOPNA,VIC,3629",60187668,"MNA034","Low voltage AC (<1kV)","Rural Long"," - fuse (any other type)","single phase","Started in or originated from a distribution system","LBRA only",0.2,"No forecast",0.05,1.0000000000000002E-2,"INC-0021395","20230720PWA_01","Meter burnt due to red phase fuse wedge catching fire Found during Outage data review, no photos supplied"]
[17,153,"2023-06-12","18:35:00",-38.424973000000001,144.17141100000001,"65 SEVENTH AVENUE,ANGLESEA,VIC",33041659,"TQY021","Low voltage AC (<1kV)","Rural Short"," - connector / termination","three phase","Started in or originated from a distribution system","LBRA only",0.2,"No forecast",0.05,1.0000000000000002E-2,"INC-0021398","20230720PWA_02","Pole sparked and a small fire started on the ground, has gone out now. Pole still intermittently sparking, supply ok On arrival crew found an overheated connection to an isolator. Found during Outage data review Small ground spot fire"]
[0,154,null,null,null,null,null,null,null,null,null,null,null,null,null,"",null,"",{"$f":"IF(OR(P191=\"\",R191=\"\"),\"\",IF(AND(O191=\"within electric line construction area\",Q191=\"No forecast\"),1,P191*R191))","v":""}]
[0,155,null,null,null,null,null,null,null,null,null,null,null,null,null,"",null,"",""]
[0,156,null,null,null,null,null,null,null,null,null,null,null,null,null,"",null,"",""]
[0,157,null,null,null,null,null,null,null,null,null,null,null,null,null,"",null,"",""]
[0,158,null,null,null,null,null,null,null,null,null,null,null,null,null,"",null,"",""]
[0,159,null,null,null,null,null,null,null,null,null,null,null,null,null,"",null,"",""]
[0,160,null,null,null,null,null,null,null,null,null,null,null,null,null,"",null,"",""]
[{"$f":"COUNTA(C198:O198,Q198,T198:V198)","v":0},161,null,null,null,null,null,null,null,null,null,null,null,null,null,"",null,"",""]
[{"$f":"COUNTA(C199:O199,Q199,T199:V199)","v":0},162,null,null,null,null,null,null,null,null,null,null,null,null,null,"",null,"",""]
[0,163,null,null,null,null,null,null,null,null,null,null,null,null,null,"",null,"",""]
[0,164,null,null,null,null,null,null,null,null,null,null,null,null,null,"",null,"",""]
[0,165,null,null,null,null,null,null,null,null,null,null,null,null,null,"",null,"",""]
[0,166,null,null,null,null,null,null,null,null,null,null,null,null,null,"",null,"",""]
[0,167,null,null,null,null,null,null,null,null,null,null,null,null,null,{"$f":"IF(O204=\"\",\"\",IF(O204=\"LBRA only\",0.2,IF(O204=\"HBRA only\",1,IF(O204=\"within electric line construction area\",19.8,IF(O204=\"within area delineated on plan LEGL./16-354\",4.6,\"\")))))","v":""},null,"",""]
[0,168,null,null,null,null,null,null,null,null,null,null,null,null,null,"",null,"",""]
[0,169,null,null,null,null,null,null,null,null,null,null,null,null,null,"",null,"",""]
[0,170,null,null,null,null,null,null,null,null,null,null,null,null,null,"",null,"",""]
[{"$f":"COUNTA(C208:O208,Q208,T208:V208)","v":0},171,null,null,null,null,null,null,null,null,null,null,null,null,null,"",null,"",""]
[{"$f":"COUNTA(C209:O209,Q209,T209:V209)","v":0},172,null,null,null,null,null,null,null,null,null,null,null,null,null,"",null,"",""]
[0,173,null,null,null,null,null,null,null,null,null,null,null,null,null,"",null,"",""]
[0,174,null,null,null,null,null,null,null,null,null,null,null,null,null,"",null,"",""]
[0,175,null,null,null,null,null,null,null,null,null,null,null,null,null,"",null,"",""]
[0,176,null,null,null,null,null,null,null,null,null,null,null,null,null,"",null,"",""]
[0,177,null,null,null,null,null,null,null,null,null,null,null,null,null,"",null,"",""]
[0,178,null,null,null,null,null,null,null,null,null,null,null,null,null,"",null,"",""]
[0,179,null,null,null,null,null,null,null,null,null,null,null,null,null,"",null,"",""]
[0,180,null,null,null,null,null,null,null,null,null,null,null,null,null,"",null,"",""]
[0,181,null,null,null,null,null,null,null,null,null,null,null,null,null,"",null,"",""]
[0,182,null,null,null,null,null,null,null,null,null,null,null,null,null,"",null,"",""]
[0,183,null,null,null,null,null,null,null,null,null,null,null,null,null,"",null,"",""]
[{"$f":"COUNTA(C221:O221,Q221,T221:V221)","v":0},184,null,null,null,null,null,null,null,null,null,null,null,null,null,"",null,"",""]
[{"$f":"COUNTA(C222:O222,Q222,T222:V222)","v":0},185,null,null,null,null,null,null,null,null,null,null,null,null,null,"",null,"",""]
[0,186,null,null,null,null,null,null,null,null,null,null,null,null,null,"",null,"",""]
[0,187,null,null,null,null,null,null,null,null,null,null,null,null,null,"",null,"",""]
[0,188,null,null,null,null,null,null,null,null,null,null,null,null,null,"",null,"",""]
[0,189,null,null,null,null,null,null,null,null,null,null,null,null,null,"",null,"",""]
[0,190,null,null,null,null,null,null,null,null,null,null,null,null,null,"",null,"",""]
[0,191,null,null,null,null,null,null,null,null,null,null,null,null,null,"",null,"",""]
[0,192,null,null,null,null,null,null,null,null,null,null,null,null,null,"",null,"",""]
[0,193,null,null,null,null,null,null,null,null,null,null,null,null,null,"",null,"",""]
[0,194,null,null,null,null,null,null,null,null,null,null,null,null,null,"",null,{"$f":"IF(Q231=\"\",\"\",IF(C231>=DATE(2022,9,1),IF(Q231=\"No forecast\",0.05,IF(Q231=\"Moderate\",0.334,IF(Q231=\"High\",0.678,IF(Q231=\"Extreme\",2.272,4.754)))),0.05))","v":""},""]
[0,195,null,null,null,null,null,null,null,null,null,null,null,null,null,"",null,"",""]
[0,196,null,null,null,null,null,null,null,null,null,null,null,null,null,"",null,"",""]
[{"$f":"COUNTA(C234:O234,Q234,T234:V234)","v":0},197,null,null,null,null,null,null,null,null,null,null,null,null,null,{"$f":"IF(O234=\"\",\"\",IF(O234=\"LBRA only\",0.2,IF(O234=\"HBRA only\",1,IF(O234=\"within electric line construction area\",19.8,IF(O234=\"within area delineated on plan LEGL./16-354\",4.6,\"\")))))","v":""},null,"",{"$f":"IF(OR(P234=\"\",R234=\"\"),\"\",IF(AND(O234=\"within electric line construction area\",Q234=\"No forecast\"),1,P234*R234))","v":""}]
[{"$f":"COUNTA(C235:O235,Q235,T235:V235)","v":0},198,null,null,null,null,null,null,null,null,null,null,null,null,null,{"$f":"IF(O235=\"\",\"\",IF(O235=\"LBRA only\",0.2,IF(O235=\"HBRA only\",1,IF(O235=\"within electric line construction area\",19.8,IF(O235=\"within area delineated on plan LEGL./16-354\",4.6,\"\")))))","v":""},null,"",{"$f":"IF(OR(P235=\"\",R235=\"\"),\"\",IF(AND(O235=\"within electric line construction area\",Q235=\"No forecast\"),1,P235*R235))","v":""}]
[0,199,null,null,null,null,null,null,null,null,null,null,null,null,null,"",null,"",""]
[0,200,null,null,null,null,null,null,null,null,null,null,null,null,null,"",null,"",""]

{"sheet":"3. Systems and Audit","index":4,"n_rows":29,"n_cols":5,"rows_kept":29,"cut":false,"hidden":false,"merged":[[28,1,29,4],[3,5,3,6],[4,5,4,6],[5,5,5,6],[6,1,6,4],[9,1,9,4],[14,1,14,4],[10,1,10,4],[13,1,13,4],[12,1,12,4],[11,1,11,4]]}
[null,{"$f":"IF(Cover!D27=\"\",\"[DNSP Name]\", Cover!D27)","v":"Powercor"}]
[null,"F-factor data reporting"]
[null,{"$f":"IF(Cover!D33=\"\",\"[Year]\",Cover!D33)","v":"2022/23"}]
[]
[]
[null,"Instructions:"]
[]
[null,{"$f":"IF(Cover!D27=\"\",\"[DNSP Name] must provide:\", CONCATENATE(Cover!D27,\" must provide:\"))","v":"Powercor must provide:"}]
[]
[null,"Table 4 - Information or reporting systems"]
[null,"   (1) Name of any IT system used to collect fire start data or fault event data - i.e. SCADA system, or fault reporting system"]
[null,"   (2) Whether the fire recording or fault recording process has been audited or complies with a relevant Australian or industry standard - Yes or No"]
[null,"   (3) List any relevant Australian or industry standards that the fire recording or fault recording process complies with"]
[null,"   (4) Whether the data entered into or removed from the IT system has been audited - Yes or No"]
[]
[]
[null,"Table 4: Information or reporting systems"]
[]
[null,"Information or reporting systems","Name","System Audited","Relevant Standards"]
[null,"System 1","Network Incidents Database","Yes","None applicable"]
[null,"System 2","Outage Management System (OMS)","Yes","None applicable"]
[null,"System 3 ","Smallworld GIS (Graphical Information System)","Yes","None applicable"]
[null,"System 4"]
[null,"System 5"]
[null,"System 6"]
[null,"System 7"]
[null,"System 8"]
[]
[null,"The SGSPAA Internal Audit function undertakes a programme of work in accordance with the SGSPAA Group Internal Audit Plan. This internal audit activity covers elements of the systems and process used for capturing, recording and maintaining fire start data."]